{"text_format":"1","workbook":"xlsx","n_sheets":27,"sheets":["Instructions","Section 1","Section 2","Section 3 (1)","Section 3","Section 3 (2)","Section 3 (3)","Section 3 (4)","Section 3 (5)","Section 3 (6)","Section 3 (7)","Section 4","Section 5","Section 6","Section 7","Section 8","Section 9","Section 10","Section 11","Section 12","Section 13","Section 14","Section 15","Section 16","Section 16 (1)","Section 16 - Funds - Signature","Macros"],"not_rendered":{"charts":0,"images":120,"macros":1,"external_links":0,"defined_names":402,"comments":25,"pivot_tables":0},"unopened":[],"bounds":{"document_bytes":16777216,"sheet_cells":100000,"rows_first":2000,"rows_last":500,"rows_between":2000,"halvings":0,"cell_chars":16384,"cell_head_chars":4096},"cells_cut":0,"cells_raw":0,"read":"whole","date_system":"1900"}

{"sheet":"Instructions","index":0,"n_rows":141,"n_cols":1,"rows_kept":141,"cut":false,"hidden":false,"merged":[]}
[]
[]
[]
[]
[]
[]
[]
[]
[]
[]
[]
[]
[]
[]
[]
[]
[]
[]
[]
[]
[]
[]
[]
[]
[]
[]
[]
[]
[]
[]
[]
[]
[]
[]
[]
[]
[]
[]
[]
[]
[]
[]
[]
[]
[]
[]
[]
[]
[]
[]
[]
[]
[]
[]
[]
[]
[]
[]
[]
[]
[]
[]
[]
[]
[]
[]
[]
[]
[]
[]
[]
[]
[]
[]
[]
[]
[]
[]
[]
[]
[]
[]
[]
[]
[]
[]
[]
[]
[]
[]
[]
[]
[]
[]
[]
[]
[]
[]
[]
[]
[]
[]
[]
[]
[]
[]
[]
[]
[]
[]
[]
[]
[]
[]
[]
[]
[]
[]
[]
[]
[]
[]
[]
[]
[]
[]
[]
[]
[]
[]
[]
[]
[]
[]
[]
[]
[]
[]
[]
[]
[" "]

{"sheet":"Section 1","index":1,"n_rows":55,"n_cols":3,"rows_kept":55,"cut":false,"hidden":false,"merged":[[54,0,54,2],[38,0,38,1],[39,0,39,1],[40,0,40,1],[41,0,41,1],[42,0,42,1],[43,0,43,1],[44,0,44,1],[45,0,45,1],[46,0,46,1],[52,0,52,2],[32,0,32,2],[34,0,34,2],[37,0,37,1],[47,0,47,1],[48,0,48,1],[33,0,33,1],[35,0,35,2],[11,0,11,2],[9,0,9,2],[13,0,13,2],[23,0,23,1],[31,0,31,1],[20,0,20,2],[22,0,22,2],[24,0,24,2],[26,0,26,2],[27,0,27,2],[28,0,28,2]]}
["Version Release Date: 05/03/2016",2]
["SECTION 1: COVER PAGE"]
[89]
["(1) Grant Number:","55IH5312690"]
[]
["(2) Recipient Program Year:","10/1 - 9/30"]
[]
["(3) Federal Fiscal Year:",2017]
[]
["(4)       Initial Plan (Complete this Section then proceed to Section 2)"]
[]
["(5)       Amended Plan (Complete this Section, Section 8 if applicable, and Section 16)"]
["          "]
["(6)       Annual Performance Report (Complete items 27-30 and proceed to Section 3)"]
[]
["(7)       Tribe"]
[]
["(8)       TDHE"]
[]
["(9) Name of Recipient:"]
["Quileute Housing Authority"]
["(10) Contact Person:"]
["Jacqueline Peterson"]
["(11) Telephone Number with Area Code:"]
["360-374-9719"]
["(12) Mailing Address:"]
["PO Box 159"]
[]
[]
["(13) City:","(14) State:","(15) Zip Code:"]
["La Push","WA",98350]
["(16) Fax Number with Area Code (if available):"]
["360-374-9117"]
["(17) Email Address (if available):"]
["jacqueline.peterson@quileutenation.org"]
["(18) If TDHE, List Tribes Below:"]
[]
["(19) Tax Identification Number:",null,"911148967"]
["(20) DUNS Number:",null,"045771722"]
["(21) CCR/SAM Expiration Date:",null,"2017-06-16"]
["(22) IHBG Fiscal Year Formula Amount:",null,649322]
["(23) Name of Authorized IHP Submitter: ",null,"Jacqueline Peterson"]
["(24) Title of Authorized IHP Submitter: ",null,"Executive Director"]
["(25) Signature of Authorized IHP Submitter: ",null,"Jacqueline Peterson"]
["(26) IHP Submission Date: ",null,"2016-07-14"]
["(27) Name of Authorized APR Submitter: "]
["(28) Title of Authorized APR Submitter: "]
["(29) Signature of Authorized APR Submitter: "]
["(30) APR Submission Date: "]
[]
[]
[]
["Certification: The information contained in this document is accurate and reflects the activities actually planned or accomplished during the program year.  Activities planned and accomplished are eligible under applicable statutes and regulations."]
[]
["Warning: If you knowingly make a false statement on this form, you may be subject to civil or criminal penalties under Section 1001 of Title 18 of the United States Code.  In addition, any person who knowingly and materially violates any required disclosure of information, including intentional disclosure, is subject to a civil money penalty not to exceed $10,000 for each violation."]

{"sheet":"Section 2","index":2,"n_rows":31,"n_cols":3,"rows_kept":31,"cut":false,"hidden":false,"merged":[[29,0,29,2],[0,0,0,2],[5,0,5,2],[7,1,7,2],[26,0,26,2],[23,0,23,2]]}
["ONE YEAR PLAN & ANNUAL PERFORMANCE REPORT"]
[]
["SECTION 2: HOUSING NEEDS "]
["NAHASDA § 102(b)(2)(B)"]
[]
["(1)   Type of Need: Check the appropriate box(es) below to describe the estimated types of housing needs and the need for other assistance for low-income Indian families (column B) and all Indian families (column C) inside and outside the jurisdiction.  "]
[]
[null,"Check All That Apply"]
["(A) ","(B)","(C)"]
["Type of Need"]
[null,"Low-Income Indian Families","All Indian Families"]
["(1)     Overcrowded Households "]
["(2)     Renters Who Wish to Become Owners "]
["(3)     Substandard Units Needing Rehabilitation"]
["(4)     Homeless Households "]
["(5)     Households Needing Affordable Rental Units"]
["(6)     College Student Housing "]
["(7)     Disabled Households Needing Accessibility"]
["(8)     Units Needing Energy Efficiency Upgrades"]
["(9)     Infrastructure to Support Housing"]
["(10)  Other (specify below)"]
[]
[]
["(2)   Other Needs. (Describe the “Other” needs below.  Note: this text is optional for all needs except “Other.”): "]
["a"]
[]
["(3) Planned Program Benefits. (Describe below how your planned programs and activities will address the needs of low income families identified above.  Also describe how your planned programs will address the various types of housing assistance needs.  NAHASDA  § 102(b)(2)(B)):  "]
["a"]
[]
["(4)   Geographic Distribution. (Describe below how the assistance will be distributed throughout the geographic area and how this geographic distribution is consistent with the needs of low income families.  NAHASDA § 102(b)(2)(B)(i)):  "]
["a"]

{"sheet":"Section 3 (1)","index":3,"n_rows":86,"n_cols":27,"rows_kept":86,"cut":false,"hidden":false,"merged":[[5,0,5,2],[49,0,49,3],[50,0,50,3],[52,0,52,3],[55,0,55,3],[6,0,6,2],[46,0,46,1],[40,2,40,3],[41,2,41,3],[42,2,42,3],[43,2,43,3],[44,2,44,3],[45,2,45,3],[46,2,46,3],[41,0,41,1],[42,0,42,1],[43,0,43,1],[44,0,44,1],[45,0,45,1],[61,0,61,3],[64,0,64,2],[79,0,79,3],[84,0,84,3],[75,0,75,3],[77,0,77,3],[66,0,66,2],[67,0,67,2],[70,0,70,2],[73,0,73,3],[68,0,68,2],[71,0,71,3]]}
[null,"Units",""]
["SECTION 3: PROGRAM DESCRIPTIONS"]
["[102(b)(2)(A)], [233(a)], [235(c)],  [404(b)], 24 CFR §1000.512(b)(2) and (3)"]
[]
["Planning and Reporting Program Year Activities"]
[]
[]
[]
["Eligible Activity May Include (citations below all reference sections in NAHASDA):"]
["Eligible Activity","Output Measure","Output Completion"]
["(1) Modernization of 1937 Act Housing [202(1)]","Units","All work completed and unit passed final inspection"]
["(2) Operation of 1937 Act Housing [202(1)]","Units","Number of units in inventory at Program Year End (PYE)"]
["(3) Acquisition of Rental Housing [202(2)]","Units","When recipient takes title to the unit"]
["(4) Construction of Rental Housing [202(2)]","Units","All work completed and unit passed final inspection"]
["(5) Rehabilitation of Rental Housing [202(2)]","Units","All work completed and unit passed final inspection"]
["(6) Acquisition of Land for Rental Housing Development [202(2)]","Acres","When recipient takes title to the land"]
["(7) Development of Emergency Shelters [202(2)]","Households","Number of households served at any one time, based on capacity of the shelter"]
["(8) Conversion of Other Structures to Affordable Housing [202(2)]","Units","All work completed and unit passed final inspection"]
["(9) Other Rental Housing Development [202(2)]","Units","All work completed and unit passed final inspection"]
["(10) Acquisition of Land for Homebuyer Unit Development [202(2)]","Acres","When recipient takes title to the land"]
["(11) New Construction of Homebuyer Units [202(2)]","Units","All work completed and unit passed final inspection"]
["(12) Acquisition of Homebuyer Units [202(2)]","Units","When recipient takes title to the unit"]
["(13) Down Payment/Closing Cost Assistance [202(2)]","Units","When binding commitment signed"]
["(14) Lending Subsidies for Homebuyers (Loan) [202(2)]","Units","When binding commitment signed"]
["(15) Other Homebuyer Assistance Activities [202(2)]","Units","When binding commitment signed"]
["(16) Rehabilitation Assistance to Existing Homeowners [202(2)]","Units","All work completed and unit passed final inspection"]
["(17) Tenant Based Rental Assistance [202(3)]","Households","Count each household once per year"]
["(18) Other Housing Service [202(3)]","Households","Count each household once per year"]
["(19) Housing Management Services [202(4)]","Households","Count each household once per year"]
["(20) Operation and Maintenance of NAHASDA-Assisted Units [202(4)]","Units","Number of units in inventory at PYE"]
["(21) Crime Prevention and Safety [202(5)]","Dollars","Dollars spent (report in Uses of Funding table only)"]
["(22) Model Activities [202(6)]","Dollars","Dollars spent (report in Uses of Funding table only)"]
["(23) Self-Determination Program [231-235]"]
["Acquisition","Units","When recipient takes title to the unit"]
["Construction","Units","All work completed and unit passed final inspection"]
["Rehabilitation","Units","All work completed and unit passed final inspection"]
["Infrastructure","Dollars","Dollars spent (report in Uses of Funding table only)"]
["(24) Infrastructure to Support Housing [202(2)]","Dollars","Dollars spent (report in Uses of Funding table only)"]
["(25) Reserve Accounts [202(9)]","N/A","N/A"]
[]
["Outcome May Include:"]
["(1) Reduce over-crowding ",null,"(7) Create new affordable rental units"]
["(2) Assist renters to become homeowners",null,"(8) Assist affordable housing for college students"]
["(3) Improve quality of substandard units",null,"(9) Provide accessibility for disabled/elderly persons"]
["(4) Improve quality of existing infrastructure ",null,"(10) Improve energy efficiency"]
["(5) Address homelessness",null,"(11) Reduction in crime reports"]
["(6) Assist affordable housing for low income households",null,"(12) Other – must provide description in boxes 1.4 (IHP) and 1.5 (APR) below",null,null,null,null,null,null,null,null,null,null,null,null,null,null,null,null,null,null,null,null,null,null,null,1]
[]
["IHP: PLANNED PROGRAM YEAR ACTIVITIES (NAHASDA § 102(b)(2)(A))"]
["For each planned activity, complete all the non-shaded sections below.  It is recommended that for each program name you assign a unique identifier to help distinguish individual programs.   This unique number can be any number of your choosing, but it should be simple and clear so that you and HUD can track tasks and results under the program and collect appropriate file documentation tied to this program.  "]
["§  One way to number your programs is chronologically.  For example, you could number your programs 2011-1, "]
["    2011-2, 2011-3 etc."]
["§  Or, you may wish to number the programs based on type.  For example rental 1, rental 2, homebuyer1,"]
["    homebuyer 2 etc.  This type of numbering system might be appropriate if you have many programs"]
["    that last over several years."]
["§  Finally, you may wish to use an outline style of numbering.  For example, all programs under your first"]
["    eligible activity would start with the number 1 and then be consecutively numbered as 1.1, 1.2, 1.3 etc. "]
["    The programs under the second eligible activity would be numbered as 2.1, 2.2, 2.3 etc."]
[]
["APR: REPORTING ON PROGRAM YEAR PROGRESS (NAHASDA § 404(b))"]
[]
["Complete the shaded section of text below to describe your completed program tasks and actual results.  Only report on activities completed during the 12-month program year.  Financial data should be presented using the same basis of accounting as the Schedule of Expenditures of Federal Awards (SEFA) in the annual audit.  For unit accomplishments, only count units when the unit was completed and occupied during the year.  For households, only count the household if it received the assistance during the previous 12-month program year."]
[]
["1.1. Program Name and Unique Identifier:   "]
["1.2. Program Description (This should be the description of the planned program.):"]
["a"]
["1.3 Eligible Activity Number (Select one activity from the Eligible Activity list.  For any activity involving housing units as the output measure (excluding operations and maintenance), do not combine homeownership and rental housing in one activity, so that when housing units are reported in the APR they are correctly identified as homeownership or rental.): ",null,null,1]
["1.4 Intended Outcome Number (Select one outcome from the Outcome list. Each program can have only one outcome.  If more than one outcome applies, create a separate program for each outcome.):      ",null,null,3]
["Describe Other Intended Outcome (Only if you selected \"Other\" above):"]
[]
["1.5 Actual Outcome Number (In the APR identify the actual outcome from the Outcome list.):      ",null,null,3]
["Describe Other Actual Outcome (Only if you selected \"Other\" above.):      "]
[]
["1.6 Who Will Be Assisted (Describe the types of households that will be assisted under the program. Please note: assistance made available to families whose incomes fall within 80 to 100 percent of the median must be included as a separate program within this section.):      "]
["a"]
["1.7. Types and Level of Assistance (Describe the types and the level of assistance that will be provided to each household, as applicable.): "]
["a"]
["1.8. APR: Describe the accomplishments for the APR in the 12-month program year.  In accordance with 24 CFR § 1000.512(b)(3), provide an analysis and explanation of cost overruns or high unit costs. "]
["a"]
["1.9:  Planned and Actual Outputs for 12-Month Program Year "]
["Planned Number of Units to be Completed in Year Under this Program","Planned Number of Households To Be Served in Year Under this Program","Planned Number of Acres To Be Purchased in Year Under this Program"]
[5]
["APR: Actual Number of Units Completed in Program Year","APR: Actual Number of Households Served in Program Year","APR: Actual Number of Acres Purchased in Program Year"]
[0]
["1.10:  APR: If the program is behind schedule, explain why.  (24 CFR § 1000.512(b)(2))"]
["a"]

{"sheet":"Section 3","index":4,"n_rows":85,"n_cols":27,"rows_kept":85,"cut":false,"hidden":true,"merged":[[5,0,5,2],[6,0,6,2],[79,0,79,3],[84,0,84,3],[73,0,73,3],[75,0,75,3],[77,0,77,3],[46,0,46,1],[46,2,46,3],[66,0,66,2],[67,0,67,2],[68,0,68,2],[71,0,71,3],[55,0,55,3],[61,0,61,3],[64,0,64,2],[70,0,70,2],[40,2,40,3],[50,0,50,3],[52,0,52,3],[41,0,41,1],[41,2,41,3],[42,0,42,1],[42,2,42,3],[43,0,43,1],[43,2,43,3],[44,0,44,1],[44,2,44,3],[45,0,45,1],[45,2,45,3],[49,0,49,3]]}
[null,null,"",null,null,null,null,null,null,null,null,null,null,"(1) Modernization of 1937 Act Housing [202(1)]","(1) Reduce over-crowding "]
["SECTION 3: PROGRAM DESCRIPTIONS",null,null,null,null,null,null,null,null,null,null,null,1,"(2) Operation of 1937 Act Housing [202(1)]","(2) Assist renters to become homeowners"]
["[102(b)(2)(A)], [233(a)], [235(c)],  [404(b)], 24 CFR §1000.512(b)(2) and (3)",null,null,null,null,null,null,null,null,null,null,null,2,"(3) Acquisition of Rental Housing [202(2)]","(3) Improve quality of substandard units"]
[null,null,null,null,null,null,null,null,null,null,null,null,3,"(4) Construction of Rental Housing [202(2)]","(4) Improve quality of existing infrastructure "]
["Planning and Reporting Program Year Activities",null,null,null,null,null,null,null,null,null,null,null,4,"(5) Rehabilitation of Rental Housing [202(2)]","(5) Address homelessness"]
[null,null,null,null,null,null,null,null,null,null,null,null,null,"(6) Acquisition of Land for Rental Housing Development [202(2)]","(6) Assist affordable housing for low income households"]
[null,null,null,null,null,null,null,null,null,null,null,null,null,"(7) Development of Emergency Shelters [202(2)]","(7) Create new affordable rental units"]
[null,null,null,null,null,null,null,null,null,null,null,null,6,"(8) Conversion of Other Structures to Affordable Housing [202(2)]","(8) Assist affordable housing for college students"]
["Eligible Activity May Include (citations below all reference sections in NAHASDA):",null,null,null,null,null,null,null,null,null,null,null,8,"(9) Other Rental Housing Development [202(2)] ","(9) Provide accessibility for disabled/elderly persons"]
["Eligible Activity","Output Measure","Output Completion",null,null,null,null,null,null,null,null,null,null,"(10) Acquisition of Land for Homebuyer Unit Development [202(2)]","(10) Improve energy efficiency"]
["(1) Modernization of 1937 Act Housing [202(1)]","Units","All work completed and unit passed final inspection",null,null,null,null,null,null,null,null,null,null,"(11) New Construction of Homebuyer Units [202(2)]","(11) Reduction in crime reports"]
["(2) Operation of 1937 Act Housing [202(1)]","Units","Number of units in inventory at Program Year End (PYE)",null,null,null,null,null,null,null,null,null,null,"(12) Acquisition of Homebuyer Units [202(2)]","(12) Other – must provide description in boxes 1.4 (IHP) and 1.5 (APR) below"]
["(3) Acquisition of Rental Housing [202(2)]","Units","When recipient takes title to the unit",null,null,null,null,null,null,null,null,null,null,"(13) Down Payment/Closing Cost Assistance [202(2)]"]
["(4) Construction of Rental Housing [202(2)]","Units","All work completed and unit passed final inspection",null,null,null,null,null,null,null,null,null,null,"(14) Lending Subsidies for Homebuyers (Loan) [202(2)]"]
["(5) Rehabilitation of Rental Housing [202(2)]","Units","All work completed and unit passed final inspection",null,null,null,null,null,null,null,null,null,null,"(15) Other Homebuyer Assistance Activities [202(2)]"]
["(6) Acquisition of Land for Rental Housing Development [202(2)]","Acres","When recipient takes title to the land",null,null,null,null,null,null,null,null,null,null,"(16) Rehabilitation Assistance to Existing Homeowners [202(2)]"]
["(7) Development of Emergency Shelters [202(2)]","Households","Number of households served at any one time, based on capacity of the shelter",null,null,null,null,null,null,null,null,null,null,"(17) Tenant Based Rental Assistance [202(3)]"]
["(8) Conversion of Other Structures to Affordable Housing [202(2)]","Units","All work completed and unit passed final inspection",null,null,null,null,null,null,null,null,null,null,"(18) Other Housing Services [202(3)]"]
["(9) Other Rental Housing Development [202(2)]","Units","All work completed and unit passed final inspection",null,null,null,null,null,null,null,null,null,null,"(19) Housing Management Services [202(4)]"]
["(10) Acquisition of Land for Homebuyer Unit Development [202(2)]","Acres","When recipient takes title to the land",null,null,null,null,null,null,null,null,null,null,"(20) Operation and Maintenance of NAHASDA-Assisted Units [202(4)]"]
["(11) New Construction of Homebuyer Units [202(2)]","Units","All work completed and unit passed final inspection",null,null,null,null,null,null,null,null,null,null,"(21) Crime Prevention and Safety [202(5)]"]
["(12) Acquisition of Homebuyer Units [202(2)]","Units","When recipient takes title to the unit",null,null,null,null,null,null,null,null,null,null,"(22) Model Activities [202(6)]"]
["(13) Down Payment/Closing Cost Assistance [202(2)]","Units","When binding commitment signed",null,null,null,null,null,null,null,null,null,null,"(23) Self-Determination Program [231-235] "]
["(14) Lending Subsidies for Homebuyers (Loan) [202(2)]","Units","When binding commitment signed",null,null,null,null,null,null,null,null,null,null,"(24) Infrastructure to Support Housing [202(2)] "]
["(15) Other Homebuyer Assistance Activities [202(2)]","Units","When binding commitment signed",null,null,null,null,null,null,null,null,null,null,"(25) Reserve Accounts [202(9)]"]
["(16) Rehabilitation Assistance to Existing Homeowners [202(2)]","Units","All work completed and unit passed final inspection"]
["(17) Tenant Based Rental Assistance [202(3)]","Households","Count each household once per year"]
["(18) Other Housing Service [202(3)]","Households","Count each household once per year"]
["(19) Housing Management Services [202(4)]","Households","Count each household once per year"]
["(20) Operation and Maintenance of NAHASDA-Assisted Units [202(4)]","Units","Number of units in inventory at PYE"]
["(21) Crime Prevention and Safety [202(5)]","Dollars","Dollars spent (report in Uses of Funding Table only)"]
["(22) Model Activities [202(6)]","Dollars","Dollars spent (report in Uses of Funding Table only)"]
["(23) Self-Determination Program [231-235]"]
["Acquisition","Units","When recipient takes title to the unit"]
["Construction","Units","All work completed and unit passed final inspection"]
["Rehabilitation","Units","All work completed and unit passed final inspection"]
["Infrastructure","Dollars","Dollars spent (report in Uses of Funding Table only)"]
["(24) Infrastructure to Support Housing [202(2)]","Dollars","Dollars spent (report in Uses of Funding Table only)"]
["(25) Reserve Accounts [202(9)]","N/A","N/A"]
[]
["Outcome May Include:"]
["(1) Reduce over-crowding ",null,"(7) Create new affordable rental units"]
["(2) Assist renters to become homeowners",null,"(8) Assist affordable housing for college students"]
["(3) Improve quality of substandard units",null,"(9) Provide accessibility for disabled/elderly persons"]
["(4) Improve quality of existing infrastructure ",null,"(10) Improve energy efficiency"]
["(5) Address homelessness",null,"(11) Reduction in crime reports"]
["(6) Assist affordable housing for low income households",null,"(12) Other – must provide description in boxes 1.4 (IHP) and 1.5 (APR) below",null,null,null,null,null,null,null,null,null,null,null,null,null,null,null,null,null,null,null,null,null,null,null,7]
[]
["IHP: PLANNED PROGRAM YEAR ACTIVITIES (NAHASDA § 102(b)(2)(A))"]
["For each planned activity, complete all the non-shaded sections below.  It is recommended that for each program name you assign a unique identifier to help distinguish individual programs.   This unique number can be any number of your choosing, but it should be simple and clear so that you and HUD can track tasks and results under the program and collect appropriate file documentation tied to this program.  "]
["§  One way to number your programs is chronologically.  For example, you could number your programs 2011-1, "]
["    2011-2, 2011-3 etc."]
["§  Or, you may wish to number the programs based on type.  For example rental 1, rental 2, homebuyer1,"]
["    homebuyer 2 etc.  This type of numbering system might be appropriate if you have many programs"]
["    that last over several years."]
["§  Finally, you may wish to use an outline style of numbering.  For example, all programs under your first"]
["    eligible activity would start with the number 1 and then be consecutively numbered as 1.1, 1.2, 1.3 etc. "]
["    The programs under the second eligible activity would be numbered as 2.1, 2.2, 2.3 etc."]
[]
["APR: REPORTING ON PROGRAM YEAR PROGRESS (NAHASDA § 404(b))"]
[]
["Complete the shaded section of text below to describe your completed program tasks and actual results.  Only report on activities completed during the 12-month program year.  Financial data should be presented using the same basis of accounting as the Schedule of Expenditures of Federal Awards (SEFA) in the annual audit.  For unit accomplishments, only count units when the unit was completed and occupied during the year.  For households, only count the household if it received the assistance during the previous 12-month program year."]
[]
["1.1. Program Name and Unique Identifier:   "]
["1.2. Program Description (This should be the description of the planned program.):"]
[]
["1.3 Eligible Activity Number (Select one activity from the Eligible Activity list.  For any activity involving housing units as the output measure (excluding operations and maintenance), do not combine homeownership and rental housing in one activity, so that when housing units are reported in the APR they are correctly identified as homeownership or rental.):      "]
["1.4 Intended Outcome Number (Select one outcome from the Outcome list. Each program can have only one outcome.  If more than one outcome applies, create a separate program for each outcome.):      "]
["Describe Other Intended Outcome (Only if you selected \"Other\" above.):      "]
[]
["1.5 Actual Outcome Number (In the APR identify the actual outcome from the Outcome list.):      "]
["Describe Other Actual Outcome (Only if you selected \"Other\" above.):      "]
[]
["1.6 Who Will Be Assisted (Describe the types of households that will be assisted under the program. Please note: assistance made available to families whose incomes fall within 80 to 100 percent of the median must be included as a separate program within this section.):      "]
[]
["1.7. Types and Level of Assistance (Describe the types and the level of assistance that will be provided to each household, as applicable.): "]
[]
["1.8. APR: Describe the accomplishments for the APR in the 12-month program year. "]
[]
["1.9:  Planned and Actual Outputs for 12-Month Program Year "]
["Planned Number of Units to be Completed in Year Under this Program","Planned Number of Households To Be Served in Year Under this Program","Planned Number of Acres To Be Purchased in Year Under this Program"]
[]
["APR: Actual Number of Units Completed in Program Year","APR: Actual Number of Households Served in Program Year","APR: Actual Number of Acres Purchased in Program Year"]
[]
["1.10:  APR: If the program is behind schedule, explain why.  (24 CFR § 1000.512(b)(2))"]

{"sheet":"Section 3 (2)","index":5,"n_rows":86,"n_cols":27,"rows_kept":86,"cut":false,"hidden":false,"merged":[[42,0,42,1],[42,2,42,3],[5,0,5,2],[6,0,6,2],[40,2,40,3],[41,0,41,1],[41,2,41,3],[55,0,55,3],[43,0,43,1],[43,2,43,3],[44,0,44,1],[44,2,44,3],[45,0,45,1],[45,2,45,3],[46,0,46,1],[46,2,46,3],[49,0,49,3],[50,0,50,3],[52,0,52,3],[84,0,84,3],[61,0,61,3],[64,0,64,2],[66,0,66,2],[67,0,67,2],[68,0,68,2],[70,0,70,2],[71,0,71,3],[73,0,73,3],[75,0,75,3],[77,0,77,3],[79,0,79,3]]}
[null,"Units","",null,null,null,null,null,null,null,null,null,null,"(1) Modernization of 1937 Act Housing [202(1)]","(1) Reduce over-crowding "]
["SECTION 3: PROGRAM DESCRIPTIONS",null,null,null,null,null,null,null,null,null,null,null,1,"(2) Operation of 1937 Act Housing [202(1)]","(2) Assist renters to become homeowners"]
["[102(b)(2)(A)], [233(a)], [235(c)],  [404(b)], 24 CFR §1000.512(b)(2) and (3)",null,null,null,null,null,null,null,null,null,null,null,2,"(3) Acquisition of Rental Housing [202(2)]","(3) Improve quality of substandard units"]
[null,null,null,null,null,null,null,null,null,null,null,null,3,"(4) Construction of Rental Housing [202(2)]","(4) Improve quality of existing infrastructure "]
["Planning and Reporting Program Year Activities",null,null,null,null,null,null,null,null,null,null,null,4,"(5) Rehabilitation of Rental Housing [202(2)]","(5) Address homelessness"]
[null,null,null,null,null,null,null,null,null,null,null,null,null,"(6) Acquisition of Land for Rental Housing Development [202(2)]","(6) Assist affordable housing for low income households"]
[null,null,null,null,null,null,null,null,null,null,null,null,null,"(7) Development of Emergency Shelters [202(2)]","(7) Create new affordable rental units"]
[null,null,null,null,null,null,null,null,null,null,null,null,6,"(8) Conversion of Other Structures to Affordable Housing [202(2)]","(8) Assist affordable housing for college students"]
["Eligible Activity May Include (citations below all reference sections in NAHASDA):",null,null,null,null,null,null,null,null,null,null,null,8,"(9) Other Rental Housing Development [202(2)] ","(9) Provide accessibility for disabled/elderly persons"]
["Eligible Activity","Output Measure","Output Completion",null,null,null,null,null,null,null,null,null,null,"(10) Acquisition of Land for Homebuyer Unit Development [202(2)]","(10) Improve energy efficiency"]
["(1) Modernization of 1937 Act Housing [202(1)]","Units","All work completed and unit passed final inspection",null,null,null,null,null,null,null,null,null,null,"(11) New Construction of Homebuyer Units [202(2)]","(11) Reduction in crime reports"]
["(2) Operation of 1937 Act Housing [202(1)]","Units","Number of units in inventory at Program Year End (PYE)",null,null,null,null,null,null,null,null,null,null,"(12) Acquisition of Homebuyer Units [202(2)]","(12) Other – must provide description in boxes 1.4 (IHP) and 1.5 (APR) below"]
["(3) Acquisition of Rental Housing [202(2)]","Units","When recipient takes title to the unit",null,null,null,null,null,null,null,null,null,null,"(13) Down Payment/Closing Cost Assistance [202(2)]"]
["(4) Construction of Rental Housing [202(2)]","Units","All work completed and unit passed final inspection",null,null,null,null,null,null,null,null,null,null,"(14) Lending Subsidies for Homebuyers (Loan) [202(2)]"]
["(5) Rehabilitation of Rental Housing [202(2)]","Units","All work completed and unit passed final inspection",null,null,null,null,null,null,null,null,null,null,"(15) Other Homebuyer Assistance Activities [202(2)]"]
["(6) Acquisition of Land for Rental Housing Development [202(2)]","Acres","When recipient takes title to the land",null,null,null,null,null,null,null,null,null,null,"(16) Rehabilitation Assistance to Existing Homeowners [202(2)]"]
["(7) Development of Emergency Shelters [202(2)]","Households","Number of households served at any one time, based on capacity of the shelter",null,null,null,null,null,null,null,null,null,null,"(17) Tenant Based Rental Assistance [202(3)]"]
["(8) Conversion of Other Structures to Affordable Housing [202(2)]","Units","All work completed and unit passed final inspection",null,null,null,null,null,null,null,null,null,null,"(18) Other Housing Services [202(3)]"]
["(9) Other Rental Housing Development [202(2)]","Units","All work completed and unit passed final inspection",null,null,null,null,null,null,null,null,null,null,"(19) Housing Management Services [202(4)]"]
["(10) Acquisition of Land for Homebuyer Unit Development [202(2)]","Acres","When recipient takes title to the land",null,null,null,null,null,null,null,null,null,null,"(20) Operation and Maintenance of NAHASDA-Assisted Units [202(4)]"]
["(11) New Construction of Homebuyer Units [202(2)]","Units","All work completed and unit passed final inspection",null,null,null,null,null,null,null,null,null,null,"(21) Crime Prevention and Safety [202(5)]"]
["(12) Acquisition of Homebuyer Units [202(2)]","Units","When recipient takes title to the unit",null,null,null,null,null,null,null,null,null,null,"(22) Model Activities [202(6)]"]
["(13) Down Payment/Closing Cost Assistance [202(2)]","Units","When binding commitment signed",null,null,null,null,null,null,null,null,null,null,"(23) Self-Determination Program [231-235] "]
["(14) Lending Subsidies for Homebuyers (Loan) [202(2)]","Units","When binding commitment signed",null,null,null,null,null,null,null,null,null,null,"(24) Infrastructure to Support Housing [202(2)] "]
["(15) Other Homebuyer Assistance Activities [202(2)]","Units","When binding commitment signed",null,null,null,null,null,null,null,null,null,null,"(25) Reserve Accounts [202(9)]"]
["(16) Rehabilitation Assistance to Existing Homeowners [202(2)]","Units","All work completed and unit passed final inspection"]
["(17) Tenant Based Rental Assistance [202(3)]","Households","Count each household once per year"]
["(18) Other Housing Service [202(3)]","Households","Count each household once per year"]
["(19) Housing Management Services [202(4)]","Households","Count each household once per year"]
["(20) Operation and Maintenance of NAHASDA-Assisted Units [202(4)]","Units","Number of units in inventory at PYE"]
["(21) Crime Prevention and Safety [202(5)]","Dollars","Dollars spent (report in Uses of Funding Table only)"]
["(22) Model Activities [202(6)]","Dollars","Dollars spent (report in Uses of Funding Table only)"]
["(23) Self-Determination Program [231-235]"]
["Acquisition","Units","When recipient takes title to the unit"]
["Construction","Units","All work completed and unit passed final inspection"]
["Rehabilitation","Units","All work completed and unit passed final inspection"]
["Infrastructure","Dollars","Dollars spent (report in Uses of Funding Table only)"]
["(24) Infrastructure to Support Housing [202(2)]","Dollars","Dollars spent (report in Uses of Funding Table only)"]
["(25) Reserve Accounts [202(9)]","N/A","N/A"]
[]
["Outcome May Include:"]
["(1) Reduce over-crowding ",null,"(7) Create new affordable rental units"]
["(2) Assist renters to become homeowners",null,"(8) Assist affordable housing for college students"]
["(3) Improve quality of substandard units",null,"(9) Provide accessibility for disabled/elderly persons"]
["(4) Improve quality of existing infrastructure ",null,"(10) Improve energy efficiency"]
["(5) Address homelessness",null,"(11) Reduction in crime reports"]
["(6) Assist affordable housing for low income households",null,"(12) Other – must provide description in boxes 1.4 (IHP) and 1.5 (APR) below",null,null,null,null,null,null,null,null,null,null,null,null,null,null,null,null,null,null,null,null,null,null,null,2]
[]
["IHP: PLANNED PROGRAM YEAR ACTIVITIES (NAHASDA § 102(b)(2)(A))"]
["For each planned activity, complete all the non-shaded sections below.  It is recommended that for each program name you assign a unique identifier to help distinguish individual programs.   This unique number can be any number of your choosing, but it should be simple and clear so that you and HUD can track tasks and results under the program and collect appropriate file documentation tied to this program.  "]
["§  One way to number your programs is chronologically.  For example, you could number your programs 2011-1, "]
["    2011-2, 2011-3 etc."]
["§  Or, you may wish to number the programs based on type.  For example rental 1, rental 2, homebuyer1,"]
["    homebuyer 2 etc.  This type of numbering system might be appropriate if you have many programs"]
["    that last over several years."]
["§  Finally, you may wish to use an outline style of numbering.  For example, all programs under your first"]
["    eligible activity would start with the number 1 and then be consecutively numbered as 1.1, 1.2, 1.3 etc. "]
["    The programs under the second eligible activity would be numbered as 2.1, 2.2, 2.3 etc."]
[]
["APR: REPORTING ON PROGRAM YEAR PROGRESS (NAHASDA § 404(b))"]
[]
["Complete the shaded section of text below to describe your completed program tasks and actual results.  Only report on activities completed during the 12-month program year.  Financial data should be presented using the same basis of accounting as the Schedule of Expenditures of Federal Awards (SEFA) in the annual audit.  For unit accomplishments, only count units when the unit was completed and occupied during the year.  For households, only count the household if it received the assistance during the previous 12-month program year."]
[]
["2.1. Program Name and Unique Identifier:"]
["2.2. Program Description (This should be the description of the planned program.):"]
["a"]
["2.3. Eligible Activity Number (Select one activity from the Eligible Activity list.  Do not combine homeownership and rental housing in one activity, so that when housing units are reported in the APR they are correctly identified as homeownership or rental.):",null,null,2]
["2.4. Intended Outcome Number (Select one outcome from the Outcome list.  Each program can have only one outcome.  If more than one outcome applies, create a separate program for each outcome.): ",null,null,6]
["Describe Other Intended Outcome (Only if you selected \"Other\" above.):      "]
[]
["2.5. Actual Outcome Number (In the APR identify the actual outcome from the Outcome list.):",null,null,6]
["Describe Other Actual Outcome (Only if you selected \"Other\" above.):      "]
[]
["2.6. Who Will Be Assisted (Describe the types of households that will be assisted under the program. Please note: assistance made available to families whose incomes fall within 80 to 100 percent of the median should be included as a separate program within this section.):"]
["a"]
["2.7. Types and Level of Assistance (Describe the types and the level of assistance that will be provided to each household, as applicable.): "]
["a"]
["2.8. APR: Describe the accomplishments for the APR in the 12-month program year."]
["a"]
["2.9:  Planned and Actual Outputs for 12-Month Program Year"]
["Planned Number of Units to be Completed in Year Under this Program","Planned Number of Households To Be Served in Year Under this Program","Planned Number of Acres To Be Purchased in Year Under this Program"]
[33]
["APR: Actual Number of Units Completed in Program Year","APR: Actual Number of Households Served in Program Year","APR: Actual Number of Acres Purchased in Program Year"]
[33]
["2.10:  APR: If the program is behind schedule, explain why.  (24 CFR § 1000.512(b)(2))"]
["a"]

{"sheet":"Section 3 (3)","index":6,"n_rows":86,"n_cols":27,"rows_kept":86,"cut":false,"hidden":false,"merged":[[42,0,42,1],[42,2,42,3],[5,0,5,2],[6,0,6,2],[40,2,40,3],[41,0,41,1],[41,2,41,3],[55,0,55,3],[43,0,43,1],[43,2,43,3],[44,0,44,1],[44,2,44,3],[45,0,45,1],[45,2,45,3],[46,0,46,1],[46,2,46,3],[49,0,49,3],[50,0,50,3],[52,0,52,3],[84,0,84,3],[61,0,61,3],[64,0,64,2],[66,0,66,2],[67,0,67,2],[68,0,68,2],[70,0,70,2],[71,0,71,3],[73,0,73,3],[75,0,75,3],[77,0,77,3],[79,0,79,3]]}
[null,"Units","",null,null,null,null,null,null,null,null,null,null,"(1) Modernization of 1937 Act Housing [202(1)]","(1) Reduce over-crowding "]
["SECTION 3: PROGRAM DESCRIPTIONS",null,null,null,null,null,null,null,null,null,null,null,1,"(2) Operation of 1937 Act Housing [202(1)]","(2) Assist renters to become homeowners"]
["[102(b)(2)(A)], [233(a)], [235(c)],  [404(b)], 24 CFR §1000.512(b)(2) and (3)",null,null,null,null,null,null,null,null,null,null,null,2,"(3) Acquisition of Rental Housing [202(2)]","(3) Improve quality of substandard units"]
[null,null,null,null,null,null,null,null,null,null,null,null,3,"(4) Construction of Rental Housing [202(2)]","(4) Improve quality of existing infrastructure "]
["Planning and Reporting Program Year Activities",null,null,null,null,null,null,null,null,null,null,null,4,"(5) Rehabilitation of Rental Housing [202(2)]","(5) Address homelessness"]
[null,null,null,null,null,null,null,null,null,null,null,null,null,"(6) Acquisition of Land for Rental Housing Development [202(2)]","(6) Assist affordable housing for low income households"]
[null,null,null,null,null,null,null,null,null,null,null,null,null,"(7) Development of Emergency Shelters [202(2)]","(7) Create new affordable rental units"]
[null,null,null,null,null,null,null,null,null,null,null,null,6,"(8) Conversion of Other Structures to Affordable Housing [202(2)]","(8) Assist affordable housing for college students"]
["Eligible Activity May Include (citations below all reference sections in NAHASDA):",null,null,null,null,null,null,null,null,null,null,null,8,"(9) Other Rental Housing Development [202(2)] ","(9) Provide accessibility for disabled/elderly persons"]
["Eligible Activity","Output Measure","Output Completion",null,null,null,null,null,null,null,null,null,null,"(10) Acquisition of Land for Homebuyer Unit Development [202(2)]","(10) Improve energy efficiency"]
["(1) Modernization of 1937 Act Housing [202(1)]","Units","All work completed and unit passed final inspection",null,null,null,null,null,null,null,null,null,null,"(11) New Construction of Homebuyer Units [202(2)]","(11) Reduction in crime reports"]
["(2) Operation of 1937 Act Housing [202(1)]","Units","Number of units in inventory at Program Year End (PYE)",null,null,null,null,null,null,null,null,null,null,"(12) Acquisition of Homebuyer Units [202(2)]","(12) Other – must provide description in boxes 1.4 (IHP) and 1.5 (APR) below"]
["(3) Acquisition of Rental Housing [202(2)]","Units","When recipient takes title to the unit",null,null,null,null,null,null,null,null,null,null,"(13) Down Payment/Closing Cost Assistance [202(2)]"]
["(4) Construction of Rental Housing [202(2)]","Units","All work completed and unit passed final inspection",null,null,null,null,null,null,null,null,null,null,"(14) Lending Subsidies for Homebuyers (Loan) [202(2)]"]
["(5) Rehabilitation of Rental Housing [202(2)]","Units","All work completed and unit passed final inspection",null,null,null,null,null,null,null,null,null,null,"(15) Other Homebuyer Assistance Activities [202(2)]"]
["(6) Acquisition of Land for Rental Housing Development [202(2)]","Acres","When recipient takes title to the land",null,null,null,null,null,null,null,null,null,null,"(16) Rehabilitation Assistance to Existing Homeowners [202(2)]"]
["(7) Development of Emergency Shelters [202(2)]","Households","Number of households served at any one time, based on capacity of the shelter",null,null,null,null,null,null,null,null,null,null,"(17) Tenant Based Rental Assistance [202(3)]"]
["(8) Conversion of Other Structures to Affordable Housing [202(2)]","Units","All work completed and unit passed final inspection",null,null,null,null,null,null,null,null,null,null,"(18) Other Housing Services [202(3)]"]
["(9) Other Rental Housing Development [202(2)]","Units","All work completed and unit passed final inspection",null,null,null,null,null,null,null,null,null,null,"(19) Housing Management Services [202(4)]"]
["(10) Acquisition of Land for Homebuyer Unit Development [202(2)]","Acres","When recipient takes title to the land",null,null,null,null,null,null,null,null,null,null,"(20) Operation and Maintenance of NAHASDA-Assisted Units [202(4)]"]
["(11) New Construction of Homebuyer Units [202(2)]","Units","All work completed and unit passed final inspection",null,null,null,null,null,null,null,null,null,null,"(21) Crime Prevention and Safety [202(5)]"]
["(12) Acquisition of Homebuyer Units [202(2)]","Units","When recipient takes title to the unit",null,null,null,null,null,null,null,null,null,null,"(22) Model Activities [202(6)]"]
["(13) Down Payment/Closing Cost Assistance [202(2)]","Units","When binding commitment signed",null,null,null,null,null,null,null,null,null,null,"(23) Self-Determination Program [231-235] "]
["(14) Lending Subsidies for Homebuyers (Loan) [202(2)]","Units","When binding commitment signed",null,null,null,null,null,null,null,null,null,null,"(24) Infrastructure to Support Housing [202(2)] "]
["(15) Other Homebuyer Assistance Activities [202(2)]","Units","When binding commitment signed",null,null,null,null,null,null,null,null,null,null,"(25) Reserve Accounts [202(9)]"]
["(16) Rehabilitation Assistance to Existing Homeowners [202(2)]","Units","All work completed and unit passed final inspection"]
["(17) Tenant Based Rental Assistance [202(3)]","Households","Count each household once per year"]
["(18) Other Housing Service [202(3)]","Households","Count each household once per year"]
["(19) Housing Management Services [202(4)]","Households","Count each household once per year"]
["(20) Operation and Maintenance of NAHASDA-Assisted Units [202(4)]","Units","Number of units in inventory at PYE"]
["(21) Crime Prevention and Safety [202(5)]","Dollars","Dollars spent (report in Uses of Funding Table only)"]
["(22) Model Activities [202(6)]","Dollars","Dollars spent (report in Uses of Funding Table only)"]
["(23) Self-Determination Program [231-235]"]
["Acquisition","Units","When recipient takes title to the unit"]
["Construction","Units","All work completed and unit passed final inspection"]
["Rehabilitation","Units","All work completed and unit passed final inspection"]
["Infrastructure","Dollars","Dollars spent (report in Uses of Funding Table only)"]
["(24) Infrastructure to Support Housing [202(2)]","Dollars","Dollars spent (report in Uses of Funding Table only)"]
["(25) Reserve Accounts [202(9)]","N/A","N/A"]
[]
["Outcome May Include:"]
["(1) Reduce over-crowding ",null,"(7) Create new affordable rental units"]
["(2) Assist renters to become homeowners",null,"(8) Assist affordable housing for college students"]
["(3) Improve quality of substandard units",null,"(9) Provide accessibility for disabled/elderly persons"]
["(4) Improve quality of existing infrastructure ",null,"(10) Improve energy efficiency"]
["(5) Address homelessness",null,"(11) Reduction in crime reports"]
["(6) Assist affordable housing for low income households",null,"(12) Other – must provide description in boxes 1.4 (IHP) and 1.5 (APR) below",null,null,null,null,null,null,null,null,null,null,null,null,null,null,null,null,null,null,null,null,null,null,null,3]
[]
["IHP: PLANNED PROGRAM YEAR ACTIVITIES (NAHASDA § 102(b)(2)(A))"]
["For each planned activity, complete all the non-shaded sections below.  It is recommended that for each program name you assign a unique identifier to help distinguish individual programs.   This unique number can be any number of your choosing, but it should be simple and clear so that you and HUD can track tasks and results under the program and collect appropriate file documentation tied to this program.  "]
["§  One way to number your programs is chronologically.  For example, you could number your programs 2011-1, "]
["    2011-2, 2011-3 etc."]
["§  Or, you may wish to number the programs based on type.  For example rental 1, rental 2, homebuyer1,"]
["    homebuyer 2 etc.  This type of numbering system might be appropriate if you have many programs"]
["    that last over several years."]
["§  Finally, you may wish to use an outline style of numbering.  For example, all programs under your first"]
["    eligible activity would start with the number 1 and then be consecutively numbered as 1.1, 1.2, 1.3 etc. "]
["    The programs under the second eligible activity would be numbered as 2.1, 2.2, 2.3 etc."]
[]
["APR: REPORTING ON PROGRAM YEAR PROGRESS (NAHASDA § 404(b))"]
[]
["Complete the shaded section of text below to describe your completed program tasks and actual results.  Only report on activities completed during the 12-month program year.  Financial data should be presented using the same basis of accounting as the Schedule of Expenditures of Federal Awards (SEFA) in the annual audit.  For unit accomplishments, only count units when the unit was completed and occupied during the year.  For households, only count the household if it received the assistance during the previous 12-month program year."]
[]
["3.1. Program Name and Unique Identifier:"]
["3.2. Program Description (This should be the description of the planned program.):"]
["a"]
["3.3. Eligible Activity Number (Select one activity from the Eligible Activity list.  Do not combine homeownership and rental housing in one activity, so that when housing units are reported in the APR they are correctly identified as homeownership or rental.):",null,null,5]
["3.4. Intended Outcome Number (Select one outcome from the Outcome list.  Each program can have only one outcome.  If more than one outcome applies, create a separate program for each outcome.): ",null,null,9]
["Describe Other Intended Outcome (Only if you selected \"Other\" above.):      "]
[]
["3.5. Actual Outcome Number (In the APR identify the actual outcome from the Outcome list.):",null,null,3]
["Describe Other Actual Outcome (Only if you selected \"Other\" above.):      "]
[]
["3.6. Who Will Be Assisted (Describe the types of households that will be assisted under the program. Please note: assistance made available to families whose incomes fall within 80 to 100 percent of the median should be included as a separate program within this section.):"]
["a"]
["3.7. Types and Level of Assistance (Describe the types and the level of assistance that will be provided to each household, as applicable.): "]
["a"]
["3.8. APR: Describe the accomplishments for the APR in the 12-month program year."]
["a"]
["3.9:  Planned and Actual Outputs for 12-Month Program Year"]
["Planned Number of Units to be Completed in Year Under this Program","Planned Number of Households To Be Served in Year Under this Program","Planned Number of Acres To Be Purchased in Year Under this Program"]
[5]
["APR: Actual Number of Units Completed in Program Year","APR: Actual Number of Households Served in Program Year","APR: Actual Number of Acres Purchased in Program Year"]
[6]
["3.10:  APR: If the program is behind schedule, explain why.  (24 CFR § 1000.512(b)(2))"]
["a"]

{"sheet":"Section 3 (4)","index":7,"n_rows":86,"n_cols":27,"rows_kept":86,"cut":false,"hidden":false,"merged":[[42,0,42,1],[42,2,42,3],[5,0,5,2],[6,0,6,2],[40,2,40,3],[41,0,41,1],[41,2,41,3],[55,0,55,3],[43,0,43,1],[43,2,43,3],[44,0,44,1],[44,2,44,3],[45,0,45,1],[45,2,45,3],[46,0,46,1],[46,2,46,3],[49,0,49,3],[50,0,50,3],[52,0,52,3],[84,0,84,3],[61,0,61,3],[64,0,64,2],[66,0,66,2],[67,0,67,2],[68,0,68,2],[70,0,70,2],[71,0,71,3],[73,0,73,3],[75,0,75,3],[77,0,77,3],[79,0,79,3]]}
[null,"Units","",null,null,null,null,null,null,null,null,null,null,"(1) Modernization of 1937 Act Housing [202(1)]","(1) Reduce over-crowding "]
["SECTION 3: PROGRAM DESCRIPTIONS",null,null,null,null,null,null,null,null,null,null,null,1,"(2) Operation of 1937 Act Housing [202(1)]","(2) Assist renters to become homeowners"]
["[102(b)(2)(A)], [233(a)], [235(c)],  [404(b)], 24 CFR §1000.512(b)(2) and (3)",null,null,null,null,null,null,null,null,null,null,null,2,"(3) Acquisition of Rental Housing [202(2)]","(3) Improve quality of substandard units"]
[null,null,null,null,null,null,null,null,null,null,null,null,3,"(4) Construction of Rental Housing [202(2)]","(4) Improve quality of existing infrastructure "]
["Planning and Reporting Program Year Activities",null,null,null,null,null,null,null,null,null,null,null,4,"(5) Rehabilitation of Rental Housing [202(2)]","(5) Address homelessness"]
[null,null,null,null,null,null,null,null,null,null,null,null,null,"(6) Acquisition of Land for Rental Housing Development [202(2)]","(6) Assist affordable housing for low income households"]
[null,null,null,null,null,null,null,null,null,null,null,null,null,"(7) Development of Emergency Shelters [202(2)]","(7) Create new affordable rental units"]
[null,null,null,null,null,null,null,null,null,null,null,null,6,"(8) Conversion of Other Structures to Affordable Housing [202(2)]","(8) Assist affordable housing for college students"]
["Eligible Activity May Include (citations below all reference sections in NAHASDA):",null,null,null,null,null,null,null,null,null,null,null,8,"(9) Other Rental Housing Development [202(2)] ","(9) Provide accessibility for disabled/elderly persons"]
["Eligible Activity","Output Measure","Output Completion",null,null,null,null,null,null,null,null,null,null,"(10) Acquisition of Land for Homebuyer Unit Development [202(2)]","(10) Improve energy efficiency"]
["(1) Modernization of 1937 Act Housing [202(1)]","Units","All work completed and unit passed final inspection",null,null,null,null,null,null,null,null,null,null,"(11) New Construction of Homebuyer Units [202(2)]","(11) Reduction in crime reports"]
["(2) Operation of 1937 Act Housing [202(1)]","Units","Number of units in inventory at Program Year End (PYE)",null,null,null,null,null,null,null,null,null,null,"(12) Acquisition of Homebuyer Units [202(2)]","(12) Other – must provide description in boxes 1.4 (IHP) and 1.5 (APR) below"]
["(3) Acquisition of Rental Housing [202(2)]","Units","When recipient takes title to the unit",null,null,null,null,null,null,null,null,null,null,"(13) Down Payment/Closing Cost Assistance [202(2)]"]
["(4) Construction of Rental Housing [202(2)]","Units","All work completed and unit passed final inspection",null,null,null,null,null,null,null,null,null,null,"(14) Lending Subsidies for Homebuyers (Loan) [202(2)]"]
["(5) Rehabilitation of Rental Housing [202(2)]","Units","All work completed and unit passed final inspection",null,null,null,null,null,null,null,null,null,null,"(15) Other Homebuyer Assistance Activities [202(2)]"]
["(6) Acquisition of Land for Rental Housing Development [202(2)]","Acres","When recipient takes title to the land",null,null,null,null,null,null,null,null,null,null,"(16) Rehabilitation Assistance to Existing Homeowners [202(2)]"]
["(7) Development of Emergency Shelters [202(2)]","Households","Number of households served at any one time, based on capacity of the shelter",null,null,null,null,null,null,null,null,null,null,"(17) Tenant Based Rental Assistance [202(3)]"]
["(8) Conversion of Other Structures to Affordable Housing [202(2)]","Units","All work completed and unit passed final inspection",null,null,null,null,null,null,null,null,null,null,"(18) Other Housing Services [202(3)]"]
["(9) Other Rental Housing Development [202(2)]","Units","All work completed and unit passed final inspection",null,null,null,null,null,null,null,null,null,null,"(19) Housing Management Services [202(4)]"]
["(10) Acquisition of Land for Homebuyer Unit Development [202(2)]","Acres","When recipient takes title to the land",null,null,null,null,null,null,null,null,null,null,"(20) Operation and Maintenance of NAHASDA-Assisted Units [202(4)]"]
["(11) New Construction of Homebuyer Units [202(2)]","Units","All work completed and unit passed final inspection",null,null,null,null,null,null,null,null,null,null,"(21) Crime Prevention and Safety [202(5)]"]
["(12) Acquisition of Homebuyer Units [202(2)]","Units","When recipient takes title to the unit",null,null,null,null,null,null,null,null,null,null,"(22) Model Activities [202(6)]"]
["(13) Down Payment/Closing Cost Assistance [202(2)]","Units","When binding commitment signed",null,null,null,null,null,null,null,null,null,null,"(23) Self-Determination Program [231-235] "]
["(14) Lending Subsidies for Homebuyers (Loan) [202(2)]","Units","When binding commitment signed",null,null,null,null,null,null,null,null,null,null,"(24) Infrastructure to Support Housing [202(2)] "]
["(15) Other Homebuyer Assistance Activities [202(2)]","Units","When binding commitment signed",null,null,null,null,null,null,null,null,null,null,"(25) Reserve Accounts [202(9)]"]
["(16) Rehabilitation Assistance to Existing Homeowners [202(2)]","Units","All work completed and unit passed final inspection"]
["(17) Tenant Based Rental Assistance [202(3)]","Households","Count each household once per year"]
["(18) Other Housing Service [202(3)]","Households","Count each household once per year"]
["(19) Housing Management Services [202(4)]","Households","Count each household once per year"]
["(20) Operation and Maintenance of NAHASDA-Assisted Units [202(4)]","Units","Number of units in inventory at PYE"]
["(21) Crime Prevention and Safety [202(5)]","Dollars","Dollars spent (report in Uses of Funding Table only)"]
["(22) Model Activities [202(6)]","Dollars","Dollars spent (report in Uses of Funding Table only)"]
["(23) Self-Determination Program [231-235]"]
["Acquisition","Units","When recipient takes title to the unit"]
["Construction","Units","All work completed and unit passed final inspection"]
["Rehabilitation","Units","All work completed and unit passed final inspection"]
["Infrastructure","Dollars","Dollars spent (report in Uses of Funding Table only)"]
["(24) Infrastructure to Support Housing [202(2)]","Dollars","Dollars spent (report in Uses of Funding Table only)"]
["(25) Reserve Accounts [202(9)]","N/A","N/A"]
[]
["Outcome May Include:"]
["(1) Reduce over-crowding ",null,"(7) Create new affordable rental units"]
["(2) Assist renters to become homeowners",null,"(8) Assist affordable housing for college students"]
["(3) Improve quality of substandard units",null,"(9) Provide accessibility for disabled/elderly persons"]
["(4) Improve quality of existing infrastructure ",null,"(10) Improve energy efficiency"]
["(5) Address homelessness",null,"(11) Reduction in crime reports"]
["(6) Assist affordable housing for low income households",null,"(12) Other – must provide description in boxes 1.4 (IHP) and 1.5 (APR) below",null,null,null,null,null,null,null,null,null,null,null,null,null,null,null,null,null,null,null,null,null,null,null,4]
[]
["IHP: PLANNED PROGRAM YEAR ACTIVITIES (NAHASDA § 102(b)(2)(A))"]
["For each planned activity, complete all the non-shaded sections below.  It is recommended that for each program name you assign a unique identifier to help distinguish individual programs.   This unique number can be any number of your choosing, but it should be simple and clear so that you and HUD can track tasks and results under the program and collect appropriate file documentation tied to this program.  "]
["§  One way to number your programs is chronologically.  For example, you could number your programs 2011-1, "]
["    2011-2, 2011-3 etc."]
["§  Or, you may wish to number the programs based on type.  For example rental 1, rental 2, homebuyer1,"]
["    homebuyer 2 etc.  This type of numbering system might be appropriate if you have many programs"]
["    that last over several years."]
["§  Finally, you may wish to use an outline style of numbering.  For example, all programs under your first"]
["    eligible activity would start with the number 1 and then be consecutively numbered as 1.1, 1.2, 1.3 etc. "]
["    The programs under the second eligible activity would be numbered as 2.1, 2.2, 2.3 etc."]
[]
["APR: REPORTING ON PROGRAM YEAR PROGRESS (NAHASDA § 404(b))"]
[]
["Complete the shaded section of text below to describe your completed program tasks and actual results.  Only report on activities completed during the 12-month program year.  Financial data should be presented using the same basis of accounting as the Schedule of Expenditures of Federal Awards (SEFA) in the annual audit.  For unit accomplishments, only count units when the unit was completed and occupied during the year.  For households, only count the household if it received the assistance during the previous 12-month program year."]
[]
["4.1. Program Name and Unique Identifier:"]
["4.2. Program Description (This should be the description of the planned program.):"]
["a"]
["4.3. Eligible Activity Number (Select one activity from the Eligible Activity list.  Do not combine homeownership and rental housing in one activity, so that when housing units are reported in the APR they are correctly identified as homeownership or rental.):",null,null,16]
["4.4. Intended Outcome Number (Select one outcome from the Outcome list.  Each program can have only one outcome.  If more than one outcome applies, create a separate program for each outcome.): ",null,null,6]
["Describe Other Intended Outcome (Only if you selected \"Other\" above.):      "]
[]
["4.5. Actual Outcome Number (In the APR identify the actual outcome from the Outcome list.):",null,null,12]
["Describe Other Actual Outcome (Only if you selected \"Other\" above.):      "]
["a"]
["4.6. Who Will Be Assisted (Describe the types of households that will be assisted under the program. Please note: assistance made available to families whose incomes fall within 80 to 100 percent of the median should be included as a separate program within this section.):"]
["a"]
["4.7. Types and Level of Assistance (Describe the types and the level of assistance that will be provided to each household, as applicable.): "]
["a"]
["4.8. APR: Describe the accomplishments for the APR in the 12-month program year."]
["a"]
["4.9:  Planned and Actual Outputs for 12-Month Program Year"]
["Planned Number of Units to be Completed in Year Under this Program","Planned Number of Households To Be Served in Year Under this Program","Planned Number of Acres To Be Purchased in Year Under this Program"]
[5]
["APR: Actual Number of Units Completed in Program Year","APR: Actual Number of Households Served in Program Year","APR: Actual Number of Acres Purchased in Program Year"]
[0]
["4.10:  APR: If the program is behind schedule, explain why.  (24 CFR § 1000.512(b)(2))"]
["a"]

{"sheet":"Section 3 (5)","index":8,"n_rows":86,"n_cols":27,"rows_kept":86,"cut":false,"hidden":false,"merged":[[42,0,42,1],[42,2,42,3],[5,0,5,2],[6,0,6,2],[40,2,40,3],[41,0,41,1],[41,2,41,3],[55,0,55,3],[43,0,43,1],[43,2,43,3],[44,0,44,1],[44,2,44,3],[45,0,45,1],[45,2,45,3],[46,0,46,1],[46,2,46,3],[49,0,49,3],[50,0,50,3],[52,0,52,3],[84,0,84,3],[61,0,61,3],[64,0,64,2],[66,0,66,2],[67,0,67,2],[68,0,68,2],[70,0,70,2],[71,0,71,3],[73,0,73,3],[75,0,75,3],[77,0,77,3],[79,0,79,3]]}
[null,"Households","",null,null,null,null,null,null,null,null,null,null,"(1) Modernization of 1937 Act Housing [202(1)]","(1) Reduce over-crowding "]
["SECTION 3: PROGRAM DESCRIPTIONS",null,null,null,null,null,null,null,null,null,null,null,1,"(2) Operation of 1937 Act Housing [202(1)]","(2) Assist renters to become homeowners"]
["[102(b)(2)(A)], [233(a)], [235(c)],  [404(b)], 24 CFR §1000.512(b)(2) and (3)",null,null,null,null,null,null,null,null,null,null,null,2,"(3) Acquisition of Rental Housing [202(2)]","(3) Improve quality of substandard units"]
[null,null,null,null,null,null,null,null,null,null,null,null,3,"(4) Construction of Rental Housing [202(2)]","(4) Improve quality of existing infrastructure "]
["Planning and Reporting Program Year Activities",null,null,null,null,null,null,null,null,null,null,null,4,"(5) Rehabilitation of Rental Housing [202(2)]","(5) Address homelessness"]
[null,null,null,null,null,null,null,null,null,null,null,null,null,"(6) Acquisition of Land for Rental Housing Development [202(2)]","(6) Assist affordable housing for low income households"]
[null,null,null,null,null,null,null,null,null,null,null,null,null,"(7) Development of Emergency Shelters [202(2)]","(7) Create new affordable rental units"]
[null,null,null,null,null,null,null,null,null,null,null,null,6,"(8) Conversion of Other Structures to Affordable Housing [202(2)]","(8) Assist affordable housing for college students"]
["Eligible Activity May Include (citations below all reference sections in NAHASDA):",null,null,null,null,null,null,null,null,null,null,null,8,"(9) Other Rental Housing Development [202(2)] ","(9) Provide accessibility for disabled/elderly persons"]
["Eligible Activity","Output Measure","Output Completion",null,null,null,null,null,null,null,null,null,null,"(10) Acquisition of Land for Homebuyer Unit Development [202(2)]","(10) Improve energy efficiency"]
["(1) Modernization of 1937 Act Housing [202(1)]","Units","All work completed and unit passed final inspection",null,null,null,null,null,null,null,null,null,null,"(11) New Construction of Homebuyer Units [202(2)]","(11) Reduction in crime reports"]
["(2) Operation of 1937 Act Housing [202(1)]","Units","Number of units in inventory at Program Year End (PYE)",null,null,null,null,null,null,null,null,null,null,"(12) Acquisition of Homebuyer Units [202(2)]","(12) Other – must provide description in boxes 1.4 (IHP) and 1.5 (APR) below"]
["(3) Acquisition of Rental Housing [202(2)]","Units","When recipient takes title to the unit",null,null,null,null,null,null,null,null,null,null,"(13) Down Payment/Closing Cost Assistance [202(2)]"]
["(4) Construction of Rental Housing [202(2)]","Units","All work completed and unit passed final inspection",null,null,null,null,null,null,null,null,null,null,"(14) Lending Subsidies for Homebuyers (Loan) [202(2)]"]
["(5) Rehabilitation of Rental Housing [202(2)]","Units","All work completed and unit passed final inspection",null,null,null,null,null,null,null,null,null,null,"(15) Other Homebuyer Assistance Activities [202(2)]"]
["(6) Acquisition of Land for Rental Housing Development [202(2)]","Acres","When recipient takes title to the land",null,null,null,null,null,null,null,null,null,null,"(16) Rehabilitation Assistance to Existing Homeowners [202(2)]"]
["(7) Development of Emergency Shelters [202(2)]","Households","Number of households served at any one time, based on capacity of the shelter",null,null,null,null,null,null,null,null,null,null,"(17) Tenant Based Rental Assistance [202(3)]"]
["(8) Conversion of Other Structures to Affordable Housing [202(2)]","Units","All work completed and unit passed final inspection",null,null,null,null,null,null,null,null,null,null,"(18) Other Housing Services [202(3)]"]
["(9) Other Rental Housing Development [202(2)]","Units","All work completed and unit passed final inspection",null,null,null,null,null,null,null,null,null,null,"(19) Housing Management Services [202(4)]"]
["(10) Acquisition of Land for Homebuyer Unit Development [202(2)]","Acres","When recipient takes title to the land",null,null,null,null,null,null,null,null,null,null,"(20) Operation and Maintenance of NAHASDA-Assisted Units [202(4)]"]
["(11) New Construction of Homebuyer Units [202(2)]","Units","All work completed and unit passed final inspection",null,null,null,null,null,null,null,null,null,null,"(21) Crime Prevention and Safety [202(5)]"]
["(12) Acquisition of Homebuyer Units [202(2)]","Units","When recipient takes title to the unit",null,null,null,null,null,null,null,null,null,null,"(22) Model Activities [202(6)]"]
["(13) Down Payment/Closing Cost Assistance [202(2)]","Units","When binding commitment signed",null,null,null,null,null,null,null,null,null,null,"(23) Self-Determination Program [231-235] "]
["(14) Lending Subsidies for Homebuyers (Loan) [202(2)]","Units","When binding commitment signed",null,null,null,null,null,null,null,null,null,null,"(24) Infrastructure to Support Housing [202(2)] "]
["(15) Other Homebuyer Assistance Activities [202(2)]","Units","When binding commitment signed",null,null,null,null,null,null,null,null,null,null,"(25) Reserve Accounts [202(9)]"]
["(16) Rehabilitation Assistance to Existing Homeowners [202(2)]","Units","All work completed and unit passed final inspection"]
["(17) Tenant Based Rental Assistance [202(3)]","Households","Count each household once per year"]
["(18) Other Housing Service [202(3)]","Households","Count each household once per year"]
["(19) Housing Management Services [202(4)]","Households","Count each household once per year"]
["(20) Operation and Maintenance of NAHASDA-Assisted Units [202(4)]","Units","Number of units in inventory at PYE"]
["(21) Crime Prevention and Safety [202(5)]","Dollars","Dollars spent (report in Uses of Funding Table only)"]
["(22) Model Activities [202(6)]","Dollars","Dollars spent (report in Uses of Funding Table only)"]
["(23) Self-Determination Program [231-235]"]
["Acquisition","Units","When recipient takes title to the unit"]
["Construction","Units","All work completed and unit passed final inspection"]
["Rehabilitation","Units","All work completed and unit passed final inspection"]
["Infrastructure","Dollars","Dollars spent (report in Uses of Funding Table only)"]
["(24) Infrastructure to Support Housing [202(2)]","Dollars","Dollars spent (report in Uses of Funding Table only)"]
["(25) Reserve Accounts [202(9)]","N/A","N/A"]
[]
["Outcome May Include:"]
["(1) Reduce over-crowding ",null,"(7) Create new affordable rental units"]
["(2) Assist renters to become homeowners",null,"(8) Assist affordable housing for college students"]
["(3) Improve quality of substandard units",null,"(9) Provide accessibility for disabled/elderly persons"]
["(4) Improve quality of existing infrastructure ",null,"(10) Improve energy efficiency"]
["(5) Address homelessness",null,"(11) Reduction in crime reports"]
["(6) Assist affordable housing for low income households",null,"(12) Other – must provide description in boxes 1.4 (IHP) and 1.5 (APR) below",null,null,null,null,null,null,null,null,null,null,null,null,null,null,null,null,null,null,null,null,null,null,null,5]
[]
["IHP: PLANNED PROGRAM YEAR ACTIVITIES (NAHASDA § 102(b)(2)(A))"]
["For each planned activity, complete all the non-shaded sections below.  It is recommended that for each program name you assign a unique identifier to help distinguish individual programs.   This unique number can be any number of your choosing, but it should be simple and clear so that you and HUD can track tasks and results under the program and collect appropriate file documentation tied to this program.  "]
["§  One way to number your programs is chronologically.  For example, you could number your programs 2011-1, "]
["    2011-2, 2011-3 etc."]
["§  Or, you may wish to number the programs based on type.  For example rental 1, rental 2, homebuyer1,"]
["    homebuyer 2 etc.  This type of numbering system might be appropriate if you have many programs"]
["    that last over several years."]
["§  Finally, you may wish to use an outline style of numbering.  For example, all programs under your first"]
["    eligible activity would start with the number 1 and then be consecutively numbered as 1.1, 1.2, 1.3 etc. "]
["    The programs under the second eligible activity would be numbered as 2.1, 2.2, 2.3 etc."]
[]
["APR: REPORTING ON PROGRAM YEAR PROGRESS (NAHASDA § 404(b))"]
[]
["Complete the shaded section of text below to describe your completed program tasks and actual results.  Only report on activities completed during the 12-month program year.  Financial data should be presented using the same basis of accounting as the Schedule of Expenditures of Federal Awards (SEFA) in the annual audit.  For unit accomplishments, only count units when the unit was completed and occupied during the year.  For households, only count the household if it received the assistance during the previous 12-month program year."]
[]
["5.1. Program Name and Unique Identifier:"]
["5.2. Program Description (This should be the description of the planned program.):"]
["a"]
["5.3. Eligible Activity Number (Select one activity from the Eligible Activity list.  Do not combine homeownership and rental housing in one activity, so that when housing units are reported in the APR they are correctly identified as homeownership or rental.):",null,null,19]
["5.4. Intended Outcome Number (Select one outcome from the Outcome list.  Each program can have only one outcome.  If more than one outcome applies, create a separate program for each outcome.): ",null,null,6]
["Describe Other Intended Outcome (Only if you selected \"Other\" above.):      "]
[]
["5.5. Actual Outcome Number (In the APR identify the actual outcome from the Outcome list.):",null,null,6]
["Describe Other Actual Outcome (Only if you selected \"Other\" above.):      "]
[]
["5.6. Who Will Be Assisted (Describe the types of households that will be assisted under the program. Please note: assistance made available to families whose incomes fall within 80 to 100 percent of the median should be included as a separate program within this section.):"]
["a"]
["5.7. Types and Level of Assistance (Describe the types and the level of assistance that will be provided to each household, as applicable.): "]
["a"]
["5.8. APR: Describe the accomplishments for the APR in the 12-month program year."]
["a"]
["5.9:  Planned and Actual Outputs for 12-Month Program Year"]
["Planned Number of Units to be Completed in Year Under this Program","Planned Number of Households To Be Served in Year Under this Program","Planned Number of Acres To Be Purchased in Year Under this Program"]
[null,68]
["APR: Actual Number of Units Completed in Program Year","APR: Actual Number of Households Served in Program Year","APR: Actual Number of Acres Purchased in Program Year"]
[null,70]
["5.10:  APR: If the program is behind schedule, explain why.  (24 CFR § 1000.512(b)(2))"]
["a"]

{"sheet":"Section 3 (6)","index":9,"n_rows":86,"n_cols":27,"rows_kept":86,"cut":false,"hidden":false,"merged":[[42,0,42,1],[42,2,42,3],[5,0,5,2],[6,0,6,2],[40,2,40,3],[41,0,41,1],[41,2,41,3],[55,0,55,3],[43,0,43,1],[43,2,43,3],[44,0,44,1],[44,2,44,3],[45,0,45,1],[45,2,45,3],[46,0,46,1],[46,2,46,3],[49,0,49,3],[50,0,50,3],[52,0,52,3],[84,0,84,3],[61,0,61,3],[64,0,64,2],[66,0,66,2],[67,0,67,2],[68,0,68,2],[70,0,70,2],[71,0,71,3],[73,0,73,3],[75,0,75,3],[77,0,77,3],[79,0,79,3]]}
[null,"Households","",null,null,null,null,null,null,null,null,null,null,"(1) Modernization of 1937 Act Housing [202(1)]","(1) Reduce over-crowding "]
["SECTION 3: PROGRAM DESCRIPTIONS",null,null,null,null,null,null,null,null,null,null,null,1,"(2) Operation of 1937 Act Housing [202(1)]","(2) Assist renters to become homeowners"]
["[102(b)(2)(A)], [233(a)], [235(c)],  [404(b)], 24 CFR §1000.512(b)(2) and (3)",null,null,null,null,null,null,null,null,null,null,null,2,"(3) Acquisition of Rental Housing [202(2)]","(3) Improve quality of substandard units"]
[null,null,null,null,null,null,null,null,null,null,null,null,3,"(4) Construction of Rental Housing [202(2)]","(4) Improve quality of existing infrastructure "]
["Planning and Reporting Program Year Activities",null,null,null,null,null,null,null,null,null,null,null,4,"(5) Rehabilitation of Rental Housing [202(2)]","(5) Address homelessness"]
[null,null,null,null,null,null,null,null,null,null,null,null,null,"(6) Acquisition of Land for Rental Housing Development [202(2)]","(6) Assist affordable housing for low income households"]
[null,null,null,null,null,null,null,null,null,null,null,null,null,"(7) Development of Emergency Shelters [202(2)]","(7) Create new affordable rental units"]
[null,null,null,null,null,null,null,null,null,null,null,null,6,"(8) Conversion of Other Structures to Affordable Housing [202(2)]","(8) Assist affordable housing for college students"]
["Eligible Activity May Include (citations below all reference sections in NAHASDA):",null,null,null,null,null,null,null,null,null,null,null,8,"(9) Other Rental Housing Development [202(2)] ","(9) Provide accessibility for disabled/elderly persons"]
["Eligible Activity","Output Measure","Output Completion",null,null,null,null,null,null,null,null,null,null,"(10) Acquisition of Land for Homebuyer Unit Development [202(2)]","(10) Improve energy efficiency"]
["(1) Modernization of 1937 Act Housing [202(1)]","Units","All work completed and unit passed final inspection",null,null,null,null,null,null,null,null,null,null,"(11) New Construction of Homebuyer Units [202(2)]","(11) Reduction in crime reports"]
["(2) Operation of 1937 Act Housing [202(1)]","Units","Number of units in inventory at Program Year End (PYE)",null,null,null,null,null,null,null,null,null,null,"(12) Acquisition of Homebuyer Units [202(2)]","(12) Other – must provide description in boxes 1.4 (IHP) and 1.5 (APR) below"]
["(3) Acquisition of Rental Housing [202(2)]","Units","When recipient takes title to the unit",null,null,null,null,null,null,null,null,null,null,"(13) Down Payment/Closing Cost Assistance [202(2)]"]
["(4) Construction of Rental Housing [202(2)]","Units","All work completed and unit passed final inspection",null,null,null,null,null,null,null,null,null,null,"(14) Lending Subsidies for Homebuyers (Loan) [202(2)]"]
["(5) Rehabilitation of Rental Housing [202(2)]","Units","All work completed and unit passed final inspection",null,null,null,null,null,null,null,null,null,null,"(15) Other Homebuyer Assistance Activities [202(2)]"]
["(6) Acquisition of Land for Rental Housing Development [202(2)]","Acres","When recipient takes title to the land",null,null,null,null,null,null,null,null,null,null,"(16) Rehabilitation Assistance to Existing Homeowners [202(2)]"]
["(7) Development of Emergency Shelters [202(2)]","Households","Number of households served at any one time, based on capacity of the shelter",null,null,null,null,null,null,null,null,null,null,"(17) Tenant Based Rental Assistance [202(3)]"]
["(8) Conversion of Other Structures to Affordable Housing [202(2)]","Units","All work completed and unit passed final inspection",null,null,null,null,null,null,null,null,null,null,"(18) Other Housing Services [202(3)]"]
["(9) Other Rental Housing Development [202(2)]","Units","All work completed and unit passed final inspection",null,null,null,null,null,null,null,null,null,null,"(19) Housing Management Services [202(4)]"]
["(10) Acquisition of Land for Homebuyer Unit Development [202(2)]","Acres","When recipient takes title to the land",null,null,null,null,null,null,null,null,null,null,"(20) Operation and Maintenance of NAHASDA-Assisted Units [202(4)]"]
["(11) New Construction of Homebuyer Units [202(2)]","Units","All work completed and unit passed final inspection",null,null,null,null,null,null,null,null,null,null,"(21) Crime Prevention and Safety [202(5)]"]
["(12) Acquisition of Homebuyer Units [202(2)]","Units","When recipient takes title to the unit",null,null,null,null,null,null,null,null,null,null,"(22) Model Activities [202(6)]"]
["(13) Down Payment/Closing Cost Assistance [202(2)]","Units","When binding commitment signed",null,null,null,null,null,null,null,null,null,null,"(23) Self-Determination Program [231-235] "]
["(14) Lending Subsidies for Homebuyers (Loan) [202(2)]","Units","When binding commitment signed",null,null,null,null,null,null,null,null,null,null,"(24) Infrastructure to Support Housing [202(2)] "]
["(15) Other Homebuyer Assistance Activities [202(2)]","Units","When binding commitment signed",null,null,null,null,null,null,null,null,null,null,"(25) Reserve Accounts [202(9)]"]
["(16) Rehabilitation Assistance to Existing Homeowners [202(2)]","Units","All work completed and unit passed final inspection"]
["(17) Tenant Based Rental Assistance [202(3)]","Households","Count each household once per year"]
["(18) Other Housing Service [202(3)]","Households","Count each household once per year"]
["(19) Housing Management Services [202(4)]","Households","Count each household once per year"]
["(20) Operation and Maintenance of NAHASDA-Assisted Units [202(4)]","Units","Number of units in inventory at PYE"]
["(21) Crime Prevention and Safety [202(5)]","Dollars","Dollars spent (report in Uses of Funding Table only)"]
["(22) Model Activities [202(6)]","Dollars","Dollars spent (report in Uses of Funding Table only)"]
["(23) Self-Determination Program [231-235]"]
["Acquisition","Units","When recipient takes title to the unit"]
["Construction","Units","All work completed and unit passed final inspection"]
["Rehabilitation","Units","All work completed and unit passed final inspection"]
["Infrastructure","Dollars","Dollars spent (report in Uses of Funding Table only)"]
["(24) Infrastructure to Support Housing [202(2)]","Dollars","Dollars spent (report in Uses of Funding Table only)"]
["(25) Reserve Accounts [202(9)]","N/A","N/A"]
[]
["Outcome May Include:"]
["(1) Reduce over-crowding ",null,"(7) Create new affordable rental units"]
["(2) Assist renters to become homeowners",null,"(8) Assist affordable housing for college students"]
["(3) Improve quality of substandard units",null,"(9) Provide accessibility for disabled/elderly persons"]
["(4) Improve quality of existing infrastructure ",null,"(10) Improve energy efficiency"]
["(5) Address homelessness",null,"(11) Reduction in crime reports"]
["(6) Assist affordable housing for low income households",null,"(12) Other – must provide description in boxes 1.4 (IHP) and 1.5 (APR) below",null,null,null,null,null,null,null,null,null,null,null,null,null,null,null,null,null,null,null,null,null,null,null,6]
[]
["IHP: PLANNED PROGRAM YEAR ACTIVITIES (NAHASDA § 102(b)(2)(A))"]
["For each planned activity, complete all the non-shaded sections below.  It is recommended that for each program name you assign a unique identifier to help distinguish individual programs.   This unique number can be any number of your choosing, but it should be simple and clear so that you and HUD can track tasks and results under the program and collect appropriate file documentation tied to this program.  "]
["§  One way to number your programs is chronologically.  For example, you could number your programs 2011-1, "]
["    2011-2, 2011-3 etc."]
["§  Or, you may wish to number the programs based on type.  For example rental 1, rental 2, homebuyer1,"]
["    homebuyer 2 etc.  This type of numbering system might be appropriate if you have many programs"]
["    that last over several years."]
["§  Finally, you may wish to use an outline style of numbering.  For example, all programs under your first"]
["    eligible activity would start with the number 1 and then be consecutively numbered as 1.1, 1.2, 1.3 etc. "]
["    The programs under the second eligible activity would be numbered as 2.1, 2.2, 2.3 etc."]
[]
["APR: REPORTING ON PROGRAM YEAR PROGRESS (NAHASDA § 404(b))"]
[]
["Complete the shaded section of text below to describe your completed program tasks and actual results.  Only report on activities completed during the 12-month program year.  Financial data should be presented using the same basis of accounting as the Schedule of Expenditures of Federal Awards (SEFA) in the annual audit.  For unit accomplishments, only count units when the unit was completed and occupied during the year.  For households, only count the household if it received the assistance during the previous 12-month program year."]
[]
["6.1. Program Name and Unique Identifier:"]
["6.2. Program Description (This should be the description of the planned program.):"]
["a"]
["6.3. Eligible Activity Number (Select one activity from the Eligible Activity list.  Do not combine homeownership and rental housing in one activity, so that when housing units are reported in the APR they are correctly identified as homeownership or rental.):",null,null,18]
["6.4. Intended Outcome Number (Select one outcome from the Outcome list.  Each program can have only one outcome.  If more than one outcome applies, create a separate program for each outcome.): ",null,null,12]
["Describe Other Intended Outcome (Only if you selected \"Other\" above.):      "]
["a"]
["6.5. Actual Outcome Number (In the APR identify the actual outcome from the Outcome list.):",null,null,11]
["Describe Other Actual Outcome (Only if you selected \"Other\" above.):      "]
[]
["6.6. Who Will Be Assisted (Describe the types of households that will be assisted under the program. Please note: assistance made available to families whose incomes fall within 80 to 100 percent of the median should be included as a separate program within this section.):"]
["a"]
["6.7. Types and Level of Assistance (Describe the types and the level of assistance that will be provided to each household, as applicable.): "]
["a"]
["6.8. APR: Describe the accomplishments for the APR in the 12-month program year."]
["a"]
["6.9:  Planned and Actual Outputs for 12-Month Program Year"]
["Planned Number of Units to be Completed in Year Under this Program","Planned Number of Households To Be Served in Year Under this Program","Planned Number of Acres To Be Purchased in Year Under this Program"]
[null,68]
["APR: Actual Number of Units Completed in Program Year","APR: Actual Number of Households Served in Program Year","APR: Actual Number of Acres Purchased in Program Year"]
[null,68]
["6.10:  APR: If the program is behind schedule, explain why.  (24 CFR § 1000.512(b)(2))"]
["a"]

{"sheet":"Section 3 (7)","index":10,"n_rows":86,"n_cols":27,"rows_kept":86,"cut":false,"hidden":false,"merged":[[42,0,42,1],[42,2,42,3],[5,0,5,2],[6,0,6,2],[40,2,40,3],[41,0,41,1],[41,2,41,3],[55,0,55,3],[43,0,43,1],[43,2,43,3],[44,0,44,1],[44,2,44,3],[45,0,45,1],[45,2,45,3],[46,0,46,1],[46,2,46,3],[49,0,49,3],[50,0,50,3],[52,0,52,3],[84,0,84,3],[61,0,61,3],[64,0,64,2],[66,0,66,2],[67,0,67,2],[68,0,68,2],[70,0,70,2],[71,0,71,3],[73,0,73,3],[75,0,75,3],[77,0,77,3],[79,0,79,3]]}
[null,"Units","",null,null,null,null,null,null,null,null,null,null,"(1) Modernization of 1937 Act Housing [202(1)]","(1) Reduce over-crowding "]
["SECTION 3: PROGRAM DESCRIPTIONS",null,null,null,null,null,null,null,null,null,null,null,1,"(2) Operation of 1937 Act Housing [202(1)]","(2) Assist renters to become homeowners"]
["[102(b)(2)(A)], [233(a)], [235(c)],  [404(b)], 24 CFR §1000.512(b)(2) and (3)",null,null,null,null,null,null,null,null,null,null,null,2,"(3) Acquisition of Rental Housing [202(2)]","(3) Improve quality of substandard units"]
[null,null,null,null,null,null,null,null,null,null,null,null,3,"(4) Construction of Rental Housing [202(2)]","(4) Improve quality of existing infrastructure "]
["Planning and Reporting Program Year Activities",null,null,null,null,null,null,null,null,null,null,null,4,"(5) Rehabilitation of Rental Housing [202(2)]","(5) Address homelessness"]
[null,null,null,null,null,null,null,null,null,null,null,null,null,"(6) Acquisition of Land for Rental Housing Development [202(2)]","(6) Assist affordable housing for low income households"]
[null,null,null,null,null,null,null,null,null,null,null,null,null,"(7) Development of Emergency Shelters [202(2)]","(7) Create new affordable rental units"]
[null,null,null,null,null,null,null,null,null,null,null,null,6,"(8) Conversion of Other Structures to Affordable Housing [202(2)]","(8) Assist affordable housing for college students"]
["Eligible Activity May Include (citations below all reference sections in NAHASDA):",null,null,null,null,null,null,null,null,null,null,null,8,"(9) Other Rental Housing Development [202(2)] ","(9) Provide accessibility for disabled/elderly persons"]
["Eligible Activity","Output Measure","Output Completion",null,null,null,null,null,null,null,null,null,null,"(10) Acquisition of Land for Homebuyer Unit Development [202(2)]","(10) Improve energy efficiency"]
["(1) Modernization of 1937 Act Housing [202(1)]","Units","All work completed and unit passed final inspection",null,null,null,null,null,null,null,null,null,null,"(11) New Construction of Homebuyer Units [202(2)]","(11) Reduction in crime reports"]
["(2) Operation of 1937 Act Housing [202(1)]","Units","Number of units in inventory at Program Year End (PYE)",null,null,null,null,null,null,null,null,null,null,"(12) Acquisition of Homebuyer Units [202(2)]","(12) Other – must provide description in boxes 1.4 (IHP) and 1.5 (APR) below"]
["(3) Acquisition of Rental Housing [202(2)]","Units","When recipient takes title to the unit",null,null,null,null,null,null,null,null,null,null,"(13) Down Payment/Closing Cost Assistance [202(2)]"]
["(4) Construction of Rental Housing [202(2)]","Units","All work completed and unit passed final inspection",null,null,null,null,null,null,null,null,null,null,"(14) Lending Subsidies for Homebuyers (Loan) [202(2)]"]
["(5) Rehabilitation of Rental Housing [202(2)]","Units","All work completed and unit passed final inspection",null,null,null,null,null,null,null,null,null,null,"(15) Other Homebuyer Assistance Activities [202(2)]"]
["(6) Acquisition of Land for Rental Housing Development [202(2)]","Acres","When recipient takes title to the land",null,null,null,null,null,null,null,null,null,null,"(16) Rehabilitation Assistance to Existing Homeowners [202(2)]"]
["(7) Development of Emergency Shelters [202(2)]","Households","Number of households served at any one time, based on capacity of the shelter",null,null,null,null,null,null,null,null,null,null,"(17) Tenant Based Rental Assistance [202(3)]"]
["(8) Conversion of Other Structures to Affordable Housing [202(2)]","Units","All work completed and unit passed final inspection",null,null,null,null,null,null,null,null,null,null,"(18) Other Housing Services [202(3)]"]
["(9) Other Rental Housing Development [202(2)]","Units","All work completed and unit passed final inspection",null,null,null,null,null,null,null,null,null,null,"(19) Housing Management Services [202(4)]"]
["(10) Acquisition of Land for Homebuyer Unit Development [202(2)]","Acres","When recipient takes title to the land",null,null,null,null,null,null,null,null,null,null,"(20) Operation and Maintenance of NAHASDA-Assisted Units [202(4)]"]
["(11) New Construction of Homebuyer Units [202(2)]","Units","All work completed and unit passed final inspection",null,null,null,null,null,null,null,null,null,null,"(21) Crime Prevention and Safety [202(5)]"]
["(12) Acquisition of Homebuyer Units [202(2)]","Units","When recipient takes title to the unit",null,null,null,null,null,null,null,null,null,null,"(22) Model Activities [202(6)]"]
["(13) Down Payment/Closing Cost Assistance [202(2)]","Units","When binding commitment signed",null,null,null,null,null,null,null,null,null,null,"(23) Self-Determination Program [231-235] "]
["(14) Lending Subsidies for Homebuyers (Loan) [202(2)]","Units","When binding commitment signed",null,null,null,null,null,null,null,null,null,null,"(24) Infrastructure to Support Housing [202(2)] "]
["(15) Other Homebuyer Assistance Activities [202(2)]","Units","When binding commitment signed",null,null,null,null,null,null,null,null,null,null,"(25) Reserve Accounts [202(9)]"]
["(16) Rehabilitation Assistance to Existing Homeowners [202(2)]","Units","All work completed and unit passed final inspection"]
["(17) Tenant Based Rental Assistance [202(3)]","Households","Count each household once per year"]
["(18) Other Housing Service [202(3)]","Households","Count each household once per year"]
["(19) Housing Management Services [202(4)]","Households","Count each household once per year"]
["(20) Operation and Maintenance of NAHASDA-Assisted Units [202(4)]","Units","Number of units in inventory at PYE"]
["(21) Crime Prevention and Safety [202(5)]","Dollars","Dollars spent (report in Uses of Funding Table only)"]
["(22) Model Activities [202(6)]","Dollars","Dollars spent (report in Uses of Funding Table only)"]
["(23) Self-Determination Program [231-235]"]
["Acquisition","Units","When recipient takes title to the unit"]
["Construction","Units","All work completed and unit passed final inspection"]
["Rehabilitation","Units","All work completed and unit passed final inspection"]
["Infrastructure","Dollars","Dollars spent (report in Uses of Funding Table only)"]
["(24) Infrastructure to Support Housing [202(2)]","Dollars","Dollars spent (report in Uses of Funding Table only)"]
["(25) Reserve Accounts [202(9)]","N/A","N/A"]
[]
["Outcome May Include:"]
["(1) Reduce over-crowding ",null,"(7) Create new affordable rental units"]
["(2) Assist renters to become homeowners",null,"(8) Assist affordable housing for college students"]
["(3) Improve quality of substandard units",null,"(9) Provide accessibility for disabled/elderly persons"]
["(4) Improve quality of existing infrastructure ",null,"(10) Improve energy efficiency"]
["(5) Address homelessness",null,"(11) Reduction in crime reports"]
["(6) Assist affordable housing for low income households",null,"(12) Other – must provide description in boxes 1.4 (IHP) and 1.5 (APR) below",null,null,null,null,null,null,null,null,null,null,null,null,null,null,null,null,null,null,null,null,null,null,null,7]
[]
["IHP: PLANNED PROGRAM YEAR ACTIVITIES (NAHASDA § 102(b)(2)(A))"]
["For each planned activity, complete all the non-shaded sections below.  It is recommended that for each program name you assign a unique identifier to help distinguish individual programs.   This unique number can be any number of your choosing, but it should be simple and clear so that you and HUD can track tasks and results under the program and collect appropriate file documentation tied to this program.  "]
["§  One way to number your programs is chronologically.  For example, you could number your programs 2011-1, "]
["    2011-2, 2011-3 etc."]
["§  Or, you may wish to number the programs based on type.  For example rental 1, rental 2, homebuyer1,"]
["    homebuyer 2 etc.  This type of numbering system might be appropriate if you have many programs"]
["    that last over several years."]
["§  Finally, you may wish to use an outline style of numbering.  For example, all programs under your first"]
["    eligible activity would start with the number 1 and then be consecutively numbered as 1.1, 1.2, 1.3 etc. "]
["    The programs under the second eligible activity would be numbered as 2.1, 2.2, 2.3 etc."]
[]
["APR: REPORTING ON PROGRAM YEAR PROGRESS (NAHASDA § 404(b))"]
[]
["Complete the shaded section of text below to describe your completed program tasks and actual results.  Only report on activities completed during the 12-month program year.  Financial data should be presented using the same basis of accounting as the Schedule of Expenditures of Federal Awards (SEFA) in the annual audit.  For unit accomplishments, only count units when the unit was completed and occupied during the year.  For households, only count the household if it received the assistance during the previous 12-month program year."]
[]
["7.1. Program Name and Unique Identifier:"]
["7.2. Program Description (This should be the description of the planned program.):"]
["a"]
["7.3. Eligible Activity Number (Select one activity from the Eligible Activity list.  Do not combine homeownership and rental housing in one activity, so that when housing units are reported in the APR they are correctly identified as homeownership or rental.):",null,null,20]
["7.4. Intended Outcome Number (Select one outcome from the Outcome list.  Each program can have only one outcome.  If more than one outcome applies, create a separate program for each outcome.): ",null,null,3]
["Describe Other Intended Outcome (Only if you selected \"Other\" above.):      "]
[]
["7.5. Actual Outcome Number (In the APR identify the actual outcome from the Outcome list.):",null,null,3]
["Describe Other Actual Outcome (Only if you selected \"Other\" above.):      "]
[]
["7.6. Who Will Be Assisted (Describe the types of households that will be assisted under the program. Please note: assistance made available to families whose incomes fall within 80 to 100 percent of the median should be included as a separate program within this section.):"]
["a"]
["7.7. Types and Level of Assistance (Describe the types and the level of assistance that will be provided to each household, as applicable.): "]
["a"]
["7.8. APR: Describe the accomplishments for the APR in the 12-month program year."]
["a"]
["7.9:  Planned and Actual Outputs for 12-Month Program Year"]
["Planned Number of Units to be Completed in Year Under this Program","Planned Number of Households To Be Served in Year Under this Program","Planned Number of Acres To Be Purchased in Year Under this Program"]
[35]
["APR: Actual Number of Units Completed in Program Year","APR: Actual Number of Households Served in Program Year","APR: Actual Number of Acres Purchased in Program Year"]
[35]
["7.10:  APR: If the program is behind schedule, explain why.  (24 CFR § 1000.512(b)(2))"]
["a"]

{"sheet":"Section 4","index":11,"n_rows":10,"n_cols":1,"rows_kept":10,"cut":false,"hidden":false,"merged":[]}
[]
["SECTION 4: MAINTAINING 1937 ACT UNITS, DEMOLITION, AND DISPOSITION "]
["NAHASDA §§ 102(b)(2)(A)(v), 102(b)(2)(A)(iv)(I-III)"]
[]
[]
["(1)   Maintaining 1937 Act Units (NAHASDA § 102(b)(2)(A)(v)) (Describe specifically how you will maintain and operate your 1937 Act housing units in order to ensure that these units will remain viable.):   "]
["a"]
[]
["(2)   Demolition and Disposition (NAHASDA § 102(b)(2)(A)(iv)(I-III), 24 CFR 1000.134) Describe any planned demolition or sale of 1937 Act or NAHASDA-assisted housing units.  If the recipient is planning on demolition or disposition of 1937 Act or NAHASDA-assisted housing units, be certain to include the timetable for any planned demolition or disposition and any other information that is required by HUD with respect to the demolition or disposition.  "]
["a"]

{"sheet":"Section 5","index":12,"n_rows":73,"n_cols":23,"rows_kept":73,"cut":false,"hidden":false,"merged":[[44,10,44,11],[43,12,43,13],[44,12,44,13],[45,12,45,13],[44,4,44,5],[45,4,45,5],[43,2,43,3],[44,2,44,3],[45,2,45,3],[43,6,43,7],[44,6,44,7],[45,6,45,7],[45,0,45,1],[44,0,44,1],[11,0,11,5],[11,6,11,10],[12,0,12,5],[12,6,12,10],[24,0,24,2],[18,0,19,2],[20,0,20,2],[21,0,21,2],[22,0,22,2],[23,0,23,2],[13,6,13,10],[13,0,13,5],[15,0,15,12],[17,3,17,7],[17,8,17,13],[25,0,25,2],[31,0,31,2],[26,0,26,2],[27,0,27,2],[26,8,26,13],[32,0,32,2],[43,8,43,9],[4,0,4,10],[5,0,5,5],[5,6,5,10],[10,0,10,5],[10,6,10,10],[9,0,9,5],[9,6,9,10],[6,0,6,5],[6,6,6,10],[7,0,7,5],[7,6,7,10],[8,0,8,5],[8,6,8,10],[62,0,69,9],[72,0,76,9],[28,0,28,2],[29,0,29,2],[30,0,30,2],[54,0,54,1],[52,4,52,5],[53,4,53,5],[44,8,44,9],[45,8,45,9],[52,8,52,9],[53,8,53,9],[53,0,53,1],[42,8,42,13],[40,0,40,12],[54,12,54,13],[42,2,42,7],[43,4,43,5],[52,12,52,13],[45,10,45,11],[52,10,52,11],[43,10,43,11],[53,10,53,11],[53,12,53,13],[46,10,46,11],[46,12,46,13],[47,10,47,11],[47,12,47,13],[48,10,48,11],[48,12,48,13],[49,10,49,11],[49,12,49,13],[50,10,50,11],[50,12,50,13],[54,10,54,11],[54,8,54,9],[53,6,53,7],[52,0,52,1],[52,6,52,7],[54,4,54,5],[52,2,52,3],[53,2,53,3],[54,2,54,3],[54,6,54,7],[47,0,47,1],[47,2,47,3],[47,4,47,5],[47,6,47,7],[47,8,47,9],[46,0,46,1],[46,2,46,3],[46,4,46,5],[46,6,46,7],[46,8,46,9],[49,0,49,1],[49,2,49,3],[49,4,49,5],[49,6,49,7],[49,8,49,9],[48,0,48,1],[48,2,48,3],[48,4,48,5],[48,6,48,7],[48,8,48,9],[51,10,51,11],[51,12,51,13],[51,0,51,1],[51,2,51,3],[51,4,51,5],[51,6,51,7],[51,8,51,9],[50,0,50,1],[50,2,50,3],[50,4,50,5],[50,6,50,7],[50,8,50,9]]}
[]
["SECTION 5: BUDGETS"]
["NAHASDA §§ 102(b)(2)(C), 404(b)"]
[]
[]
[]
[]
[]
[]
[]
[]
[]
[]
[]
[]
["(1) Sources of Funding (NAHASDA § 102(b)(2)(C)(i), (404(b)) (Complete the non-shaded portions of the chart below to describe your estimated or anticipated sources of funding for the 12-month program year.  APR Actual Sources of Funding -- Please complete the shaded portions of the chart below to describe your actual funds received.  Only report on funds actually received and under a grant agreement or other binding commitment during the 12-month program year.)  "]
[]
[null,null,null,"IHP",null,null,null,null,"APR"]
["SOURCE",null,null,"(A)","(B)","(C)","(D)","(E)","(F)","(G)","(H)","(I)","(J)","(K)"]
[null,null,null,"Estimated amount on hand at beginning of program year","Estimated amount to be received during 12-month program year","Estimated total sources of funds      (A+B)","Estimated funds to be expended during 12-month program year","Estimated unexpended funds remaining at end of program year  (C-D)","Actual amount on hand at beginning of program year","Actual amount received during 12-month program year","Actual total sources of funding (F+G)","Actual funds expended during 12-month program year","Actual unexpended funds remaining at end of 12-month program year (H - I)","Actual unexpended funds obligated but not expended at end of 12-month program year"]
["1. IHBG Funds",null,null,200000,649322,{"$f":"SUM(D21:E21)","v":849322},745322,0,1101731,296610,{"$f":"SUM(I21:J21)","v":1398341},610717,{"$f":"SUM(K21-L21)","v":787624},0]
["2. IHBG Program Income",null,null,150000,100000,250000,250000,{"$f":"(F22-G22)","v":0},618808,159302,778110,0,778110,0]
["3. Title VI",null,null,0,0,0,0,0,0,0,0,0,0,0]
["4. Title VI Program Income",null,null,0,0,0,0,0,0,0,0,0,0,0]
["5. 1937 Act Operating Reserves",null,null,0,null,0,0,0,0,null,0,0,0,0]
["6. Carry Over 1937 Act Funds",null,null,0,null,0,0,0,0,null,0,0,0,0]
["LEVERAGED FUNDS",null,null,null,null,null,0,null,0]
["7. ICDBG Funds",null,null,0,0,{"$f":"SUM(D28:E28)","v":0},0,{"$f":"(F28-G28)","v":0},159715,297595,{"$f":"SUM(I28:J28)","v":457310},397552,{"$f":"SUM(K28-L28)","v":59758},0]
["8. Other Federal Funds",null,null,0,0,{"$f":"SUM(D29:E29)","v":0},0,{"$f":"(F29-G29)","v":0},0,0,{"$f":"SUM(I29:J29)","v":0},0,{"$f":"SUM(K29-L29)","v":0},0]
["9. LIHTC",null,null,0,0,{"$f":"SUM(D30:E30)","v":0},0,{"$f":"(F30-G30)","v":0},0,0,{"$f":"SUM(I30:J30)","v":0},0,{"$f":"SUM(K30-L30)","v":0},0]
["10. Non-Federal Funds",null,null,0,0,{"$f":"SUM(D31:E31)","v":0},0,{"$f":"(F31-G31)","v":0},0,5300,5300,5300,{"$f":"SUM(K31-L31)","v":0},0]
["TOTAL",null,null,{"$f":"SUM(D21:D31)","v":350000},{"$f":"SUM(E21:E31)","v":749322},{"$f":"SUM(F21:F31)","v":1099322},{"$f":"SUM(G21:G31)","v":995322},0,0,758807,2639061,1013569,1625492,0]
["TOTAL Columns C & H, 2 through 10",null,null,null,null,{"$f":"SUM(F22:F31)","v":250000},null,null,null,null,{"$f":"SUM(K22:K31)","v":1240720}]
["Notes:"]
["a. For the IHP, fill in columns A, B, C, D, and E (non-shaded columns). For the APR, fill in columns F, G, H, I, J, and K (shaded columns)."]
["b. Total of Column D should match the total of Column N from the Uses of Funding table below."]
["c. Total of Column I should match the Total of Column Q from the Uses of Funding table below."]
["d.  For the IHP, describe any estimated leverage in Line 3 below (Estimated Sources or Uses of Funding). For the APR, describe actual leverage in Line 4 below."]
[]
[]
["(2) Uses of Funding (NAHASDA § 102(b)(2)(C)(ii)) (Note that the budget should not exceed the total funds on hand (Column C) and insert as many rows as needed to include all the programs identified in Section 3.  Actual expenditures in the APR section are for the 12-month program year.)  "]
[]
[null,null,"IHP",null,null,null,null,null,"APR"]
[null,null,"(L)",null,"(M)",null,"(N)",null,"(O)",null,"(P)",null,"(Q)"]
["PROGRAM NAME",null,"Prior and current year IHBG (only) funds to be expended in 12-month program year",null,"Total all other funds to be expended in 12-month program year",null,"Total funds to be expended in 12-month program year (L+M)",null,"Total IHBG (only) funds expended in 12-month program year",null,"Total all other funds expended in 12-month program year",null,"Total funds expended in 12-month program year (O+P)"]
["2017--1 Modernization of 1937 Act Housing Units",null,175000,null,50000,null,{"$f":"SUM(C46:E46)","v":225000},null,0,null,0,null,{"$f":"SUM(I46:K46)","v":0},null,"Section 3 (1)",5,null,0,0,null,null,3,1]
["2017-2 Operation of 1937 Act Housing",null,66000,null,0,null,{"$f":"SUM(C47:E47)","v":66000},null,121703,null,0,null,{"$f":"SUM(I47:K47)","v":121703},null,"Section 3 (2)",33,null,null,33,null,null,6,2]
["2017-3 Rehaboilitation of Rental Housing",null,155000,null,101322,null,256322,null,44415,null,0,null,44415,null,"Section 3 (3)",5,null,null,6,null,null,3,5]
["2017-4 Rehabilitation Assistance to Home owners",null,125000,null,50000,null,175000,null,0,null,0,null,0,null,"Section 3 (4)",5,null,null,0,null,null,12,16]
["2017-5 Housing Management Services",null,70000,null,25000,null,95000,null,110033,null,0,null,110033,null,"Section 3 (5)",null,68,null,null,70,null,6,19]
["2017-6 Crime Prevention and Safety",null,69322,null,23678,null,93000,null,121949,null,0,null,121949,null,"Section 3 (6)",null,68,null,null,null,null,11,18]
["2017-7 Operations and Maintenace of NAHASDA Units",null,70000,null,0,null,70000,null,89771,null,0,null,89771,null,"Section 3 (7)",35,null,null,null,null,null,3,20]
["Planning and Administration",null,15000,null,0,null,15000,null,122846,null,5300,null,128146]
["Loan repayment - describe in 3 & 4 below",null,0,null,0,null,0,null,0,null,397552,null,397552]
["TOTAL",null,{"$f":"SUM(C46:C54)","v":745322},null,{"$f":"SUM(E46:E54)","v":250000},null,995322,null,{"$f":"SUM(I46:I54)","v":610717},null,{"$f":"SUM(K46:K54)","v":402852},null,1013569]
["Notes:"]
["a. Total of Column L cannot exceed the IHBG funds from Column C, Row 1 from the Sources of Funding table in Line 1 above. "]
["b. Total of Column M cannot exceed the total from Column C, Rows 2-10 from the Sources of Funding table in Line 1 above.  "]
["c. Total of Column O cannot exceed total IHBG funds received in Column H, Row 1 from the Sources of Funding table in Line 1 above."]
["d. Total of Column P cannot exceed total of Column H, Rows 2-10 of the Sources of Funding table in Line 1 above."]
["e. Total of Column Q should equal total of Column I of the Sources of Funding table in Line 1 above."]
[]
["(3) Estimated Sources or Uses of Funding (NAHASDA § 102(b)(2)(C)).  (Provide any additional information about the estimated sources or uses of funding, including leverage (if any).  You must provide the relevant information for any planned loan repayment listed in the Uses of Funding table on the previous page.  This planned loan repayment can be associated with Title VI or with private or tribal funding that is used for an eligible activity described in an IHP that has been determined to be in compliance by HUD.  The text must describe which specific loan is planned to be repaid and the NAHASDA-eligible activity and program associated with this loan):  "]
[]
[]
[]
[]
[]
[]
[]
["a"]
[]
["(4) APR (NAHASDA § 404(b)) (Enter any additional information about the actual sources or uses of funding, including leverage (if any).  You must provide the relevant information for any actual loan repayment listed in the Uses of Funding table on the previous page.  The text must describe which loan was repaid and the NAHASDA-eligible activity and program associated with this loan.):"]

{"sheet":"Section 6","index":13,"n_rows":64,"n_cols":4,"rows_kept":64,"cut":false,"hidden":false,"merged":[[46,0,46,5],[4,0,9,5],[12,0,14,5],[37,0,37,5],[40,0,43,5],[21,0,21,5],[33,0,33,5],[35,0,35,5],[44,0,44,2],[27,0,27,5],[29,0,29,5],[62,0,62,1],[63,0,63,1],[49,0,49,5],[51,0,51,3],[53,0,53,1],[54,0,54,1],[60,0,60,3],[56,0,58,3]]}
[]
["SECTION 6:  OTHER SUBMISSION ITEMS"]
["[102(b)(2)(C)(ii)], [201(b)(5)], [202(6)], [205(a)(2)], [209], 24 CFR §§ 1000.108, 1000.120, 1000.142, 1000.238, 1000.302"]
[]
["(1)   Useful Life/Affordability Period(s) (NAHASDA § 205, 24 CFR § 1000.142) (Describe your plan or system for determining the useful life/affordability period of the housing it assists with IHBG and/or Title VI funds must be provided in the IHP. A record of the current, specific useful life/affordability period for housing units assisted with IHBG and/or Title VI funds (excluding Mutual Help) must be maintained in the recipient’s files and available for review for the useful life/affordability period.):"]
[]
[]
[]
[]
[]
["a"]
[]
["(2)   Model Housing and Over-Income Activities (NAHASDA § 202(6), 24 CFR § 1000.108) (If you wish to undertake a model housing activity or wish to serve non-low-income households during the 12-month program year, those activities may be described here, in the program description section of the 1-year plan, or as a separate submission.):"]
[" "]
[]
["a"]
[]
["(3)   Tribal and Other Indian Preference (NAHASDA § 201(b)(5), 24 CFR § 1000.120)"]
[" If preference will be given to tribal members or other Indian families, the preference policy must be "]
[" described. This information may be provided here or in the program description section of the 1-year plan."]
[]
["      Does the Tribe have a preference policy?  "]
[]
["If yes, describe the policy."]
["a"]
[]
["(4)   Anticipated Planning and Administration Expenses (NAHASDA § 102(b)(2)(C)(ii), 24 CFR § 1000.238)"]
["Do you intend to exceed your allowable spending cap for Planning and Administration?  "]
[" "]
["If yes, describe why the additional funds are needed for Planning and Administration.  For a recipient administering funds from multiple grant beneficiaries with a mix of grant or expenditure amounts, for each beneficiary state the grant amount or expenditure amount, the cap percentage applied, and the actual dollar amount of the cap. "]
[]
[]
["(5)   Actual Planning and Administration Expenses (NAHASDA § 102(b)(2)(C)(ii), 24 CFR § 1000.238)"]
["Did you exceed your spending cap for Planning and Administration? "]
[]
["If yes, did you receive HUD approval to exceed the cap on Planning and Administration costs? "]
[" "]
["If you did not receive approval for exceeding your spending cap on planning and administration costs, describe the reason(s) for exceeding the cap. (See Section 6, Line 5 of the Guidance for information on carry-over of unspent planning and administration expenses.) "]
[]
[]
["(6) Expanded Formula Area - Verification of Substantial Housing Services (24 CFR § 1000.302(3))  If your tribe has an expanded formula area (i.e., an area that was justified based on housing services provided rather than the list of areas defined in 24 CFR § 1000.302 Formula Area (1)), the tribe must demonstrate that it is continuing to provide substantial housing services to that expanded formula area.   Does the tribe have an expanded formula area? "]
[]
[]
[]
["                                     If no, proceed to Section 7."]
[]
["If yes, list each separate geographic area that has been added to the Tribe’s formula area and the documented number of Tribal members residing there. "]
["a"]
[]
["For each separate formula area expansion, list the budgeted amount of IHBG and other funds to be provided to all American Indian and Alaska Native (AIAN) households and to only those AIAN households with incomes 80% of median income or lower during the recipient’s 12-month program year:"]
[]
["Total Expenditures on Affordable Housing Activities for:"]
[null,null,"All AIAN Households","AIAN Households with Incomes 80% or Less of Median Income"]
["IHBG Funds:"]
["Funds from Other Sources:"]
[]
["(7) APR:  If answered \"Yes\" in Line 6, for each separate formula area, list the actual amount of IHBG and other funds expended for all AIAN households and for only AIAN households with incomes 80% of median income or lower during the recipient's 12-month program year. "]
[]
[]
[" "," "]
["Total Expenditures on Affordable Housing Activities for:"]
[null,null,"All AIAN Households","AIAN Households with Incomes 80% or Less of Median Income"]
["IHBG Funds:"]
["Funds from Other Sources:"]

{"sheet":"Section 7","index":14,"n_rows":21,"n_cols":1,"rows_kept":21,"cut":false,"hidden":false,"merged":[[18,0,18,9],[20,0,20,9],[4,0,4,9],[8,0,8,9],[10,0,10,9],[11,0,11,9],[14,0,14,9],[16,0,16,9]]}
[]
["SECTION 7:  INDIAN HOUSING PLAN CERTIFICATION OF COMPLIANCE    "]
["NAHASDA § 102(b)(2)(D)"]
[]
["By signing the IHP, the recipient certifies its compliance with Title II of the Civil Rights Act of 1968 (25 USC Part 1301 et seq.), and ensures that the recipient has all appropriate policies and procedures in place to operate its planned programs.  The recipient should not assert that it has the appropriate policies and procedures in place if these documents do not exist in its files, as this will be one of the items verified during any HUD monitoring review.   "]
[]
[]
["(1) In accordance with applicable statutes, the recipient certifies that:"]
["It will comply with Title II of the Civil Rights Act of 1968 in carrying out this Act, to the extent that such title is applicable, and other applicable federal statutes."]
[]
["(2) In accordance with 24 CFR 1000.328, the recipient receiving less than $200,000 under FCAS certifies that:"]
["There are households within its jurisdiction at or below 80 percent of median income."]
[]
["(3) The following certifications will only apply where applicable based on program activities."]
["a. It will maintain adequate insurance coverage for housing units that are owned and operated or assisted with grant amounts provided under NAHASDA, in compliance with such requirements as may be established by HUD;"]
[]
["b. Policies are in effect and are available for review by HUD and the public governing the eligibility, admission, and occupancy of families for housing assisted with grant amounts provided under NAHASDA;"]
[]
["c. Policies are in effect and are available for review by HUD and the public governing rents charged, including the methods by which such rents or homebuyer payments are determined, for housing assisted with grant amounts provided under NAHASDA; and"]
[]
["d. Policies are in effect and are available for review by HUD and the public governing the management and maintenance of housing assisted with grant amounts provided under NAHASDA."]

{"sheet":"Section 8","index":15,"n_rows":14,"n_cols":6,"rows_kept":14,"cut":false,"hidden":false,"merged":[[1,0,1,5],[2,0,2,5],[7,0,7,10],[8,0,8,10],[9,0,9,4],[9,5,9,10],[10,5,11,10],[12,0,12,4],[13,0,13,4],[12,5,12,10],[13,5,13,10],[10,0,10,4],[11,0,11,4]]}
[]
["SECTION 8:  IHP TRIBAL CERTIFICATION "]
["NAHASDA § 102(c)"]
[]
[" This certification is used when a Tribally Designated Housing Entity (TDHE) prepares the IHP or IHP amendment on behalf of a tribe. "]
[" This certification must be executed by the recognized tribal government covered under the IHP."]
["(1) The recognized tribal government of the grant beneficiary certifies that:"]
["(2)      It had an opportunity to review the IHP or IHP amendment and has authorized the submission of the IHP by the TDHE; or"]
["(3)      It has delegated to such TDHE the authority to submit an IHP or IHP amendment on behalf of the Tribe without prior review by the Tribe."]
["(4)  Tribe:",null,null,null,null,"Quileuete Tribe"]
["(5)  Authorized Official’s Name and",null,null,null,null,"Charles Woodruff, Chairman"]
["      Title:"]
["(6)  Authorized Official’s Signature:",null,null,null,null,"On File"]
["(7)  Date (MM/DD/YYYY):",null,null,null,null,"2016-06-23"]

{"sheet":"Section 9","index":16,"n_rows":12,"n_cols":1,"rows_kept":12,"cut":false,"hidden":false,"merged":[[7,0,7,10],[8,0,8,10],[2,0,2,6],[6,0,6,10]]}
[]
["SECTION 9:  TRIBAL WAGE RATE CERTIFICATION  "]
["NAHASDA §§ 102(b)(2)(D)(vi), 104(b)"]
[]
[" By signing the IHP, you certify whether you will use tribally determined wages, Davis-Bacon wages, or HUD "]
[" determined wages.  Check only the applicable box below.  "]
["(1)     You will use tribally determined wage rates when required for IHBG-assisted construction or maintenance activities.   The Tribe has appropriate laws and regulations in place in order for it to determine and distribute prevailing wages.  "]
["(2)     You will use Davis-Bacon or HUD determined wage rates when required for IHBG-assisted construction or maintenance activities. "]
["(3)      You will use Davis-Bacon and/or HUD determined wage rates when required for IHBG-assisted construction except for the activities described below. "]
[]
["(4) List the activities using tribally determined wage rates: "]
["a"]

{"sheet":"Section 10","index":17,"n_rows":20,"n_cols":1,"rows_kept":20,"cut":false,"hidden":false,"merged":[[8,0,8,10],[18,0,18,10],[6,0,6,10],[10,0,10,10],[14,0,14,10]]}
[]
["SECTION 10:  SELF-MONITORING"]
["NAHASDA § 403(b), 24 CFR §§ 1000.26, 85.37, 85.40"]
[]
["(1)   Do you have a procedure and/or policy for self-monitoring?"]
[]
[]
[]
["(2)   Pursuant to 24 CFR § 1000.502(b) where the recipient is a TDHE, did the TDHE provide periodic progress reports including the self-monitoring report, Annual Performance Report, and audit reports to the Tribe? "]
[]
[]
[]
["(3)   Did you conduct self-monitoring, including monitoring sub-recipients?"]
[]
[]
[]
[]
[]
["(4) Self-Monitoring Results.  (Describe the results of the monitoring activities, including inspections for this program year.):"]
["a"]

{"sheet":"Section 11","index":18,"n_rows":24,"n_cols":7,"rows_kept":24,"cut":false,"hidden":false,"merged":[[23,0,23,6],[19,0,19,1],[8,2,8,6],[13,2,13,6],[21,3,21,6],[4,0,4,6],[6,0,6,1],[18,0,18,1],[12,0,12,1],[7,0,7,1],[5,3,5,6]]}
[]
["SECTION 11:  INSPECTIONS"]
["NAHASDA § 403(b)                                            "]
[]
["    (1)   Inspection of Units (Use the table below to record the results of recurring inspections of assisted housing.)     "]
[null,null,null,"Results of Inspections"]
["Activity",null,"Total Number of Units (Inventory)","Units in standard condition","Units needing rehabilitation","Units needing to be replaced","Total number of units inspected"]
["(a)",null,"(b)","(c)","(d)","(e)","(f)"]
[1,"1937 Housing Act Units:"]
[null,"a. Rental",12,12,0,0,{"$f":"SUM(D10:F10)","v":12}]
[null,"b. Homeownership",18,15,3,0,{"$f":"SUM(D11:F11)","v":18}]
[null,"c. Other",0,0,0,0,{"$f":"SUM(D12:F12)","v":0}]
["1937 Act Subtotal",null,{"$f":"SUM(C10:C12)","v":30},{"$f":"SUM(D10:D12)","v":27},{"$f":"SUM(E10:E12)","v":3},{"$f":"SUM(F10:F12)","v":0},{"$f":"SUM(D13:F13)","v":30}]
[2,"NAHASDA assisted  units:"]
[null,"a. Rental",14,12,2,0,{"$f":"SUM(D15:F15)","v":14}]
[null,"b. Homeownership",22,22,0,0,22]
[null,"c. Rental Assistance",0,0,0,0,0]
[null,"d. Other",0,0,0,0,0]
["NAHASDA Subtotal",null,{"$f":"SUM(C15:C18)","v":36},{"$f":"SUM(D15:D18)","v":34},{"$f":"SUM(E15:E18)","v":2},{"$f":"SUM(F15:F18)","v":0},36]
["Total",null,{"$f":"C13+C19","v":66},{"$f":"D13+D19","v":61},{"$f":"E13+E19","v":5},{"$f":"F13+F19","v":0},66]
[]
["(2)   Did you comply with your inspection policy:"]
[]
["(3)    If no, why not:"]

{"sheet":"Section 12","index":19,"n_rows":11,"n_cols":1,"rows_kept":11,"cut":false,"hidden":false,"merged":[[9,0,9,10],[7,0,7,10],[4,0,4,10]]}
[]
["SECTION 12:  AUDITS"]
["24 CFR § 1000.544"]
[]
["This section is used to indicate whether an Office of Management and Budget Circular A-133 audit is required, based on a review of your financial records.  "]
["Did you expend $750,000 or more in total Federal awards during the APR reporting period?"]
[]
[]
[]
["If Yes, an audit is required to be submitted to the Federal Audit Clearinghouse and your Area Office of Native American Programs.    "]
["If No, an audit is not required."]

{"sheet":"Section 13","index":20,"n_rows":19,"n_cols":1,"rows_kept":19,"cut":false,"hidden":false,"merged":[[14,0,14,10],[17,0,17,10],[7,0,7,10],[11,0,11,10]]}
[]
["SECTION 13: PUBLIC AVAILABILITY"]
["NAHASDA § 408, 24 CFR § 1000.518"]
[]
["(1).  Did you make this APR available to the citizens in your jurisdiction before it was submitted to HUD "]
["       (24 CFR § 1000.518)?"]
[]
[]
[]
["(2)   If you are a TDHE, did you submit this APR to the Tribe(s) (24 CFR § 1000.512)?"]
[]
[]
[]
[]
["(3)    If you answered “No” to question #1 and/or #2, provide an explanation as to why not and indicate when you will do so. "]
[]
[]
["(4) Summarize any comments received from the Tribe(s) and/or the citizens (NAHASDA § 404(d))."]
["a"]

{"sheet":"Section 14","index":21,"n_rows":11,"n_cols":6,"rows_kept":11,"cut":false,"hidden":false,"merged":[[6,0,6,9],[10,0,10,9],[7,0,7,4],[8,0,8,4],[7,5,7,9],[8,5,8,9]]}
[]
["SECTION 14:  JOBS SUPPORTED BY NAHASDA"]
["NAHASDA § 404(b)"]
[]
["Use the table below to record the number of jobs supported with IHBG funds each year."]
[]
["Indian Housing Block Grant Assistance (IHBG)"]
["(1) Number of Permanent Jobs Supported",null,null,null,null,8]
["(2) Number of Temporary Jobs Supported",null,null,null,null,4]
[]
["(3) Narrative (optional):"]

{"sheet":"Section 15","index":22,"n_rows":22,"n_cols":1,"rows_kept":22,"cut":false,"hidden":false,"merged":[[17,5,17,10],[18,5,19,10],[20,5,20,10],[21,5,21,10],[14,0,14,10],[17,0,17,4],[18,0,18,4],[19,0,19,4],[20,0,20,4],[21,0,21,4],[11,0,11,10],[4,0,4,10],[5,0,5,10],[7,0,7,10],[8,0,8,10]]}
[]
["SECTION 15: IHP WAIVER REQUESTS"]
["NAHASDA § 101(b)(2)"]
[]
["THIS SECTION IS ONLY REQUIRED IF THE RECIPIENT IS REQUESTING A WAIVER OF AN IHP SECTION OR A WAIVER OF THE IHP SUBMISSION DUE DATE. "]
["A waiver is valid for a period not to exceed 90 days.  Fill out the form below if you are requesting a waiver of one or more sections of the IHP.  NOTE: This is NOT a waiver of the IHBG program requirements but rather a request to waive some of the IHP submission items.    "]
[]
["(1) List below the sections of the IHP where you are requesting a waiver and/or a waiver of the IHP due date. "]
["    (List the requested waiver sections by name and section number):"]
[]
[]
["(2) Describe the reasons that you are requesting this waiver (Describe completely why you are unable to complete a particular section of the IHP or could not submit the IHP by the required due date.):"]
[]
[]
["(3)  Describe the actions you will take in order to ensure that you are able to submit a complete IHP in the future and/or submit the IHP by the required due date. (This section should completely describe the procedural, staffing or technical corrections that you will make in order to submit a complete IHP in the future and/or submit the IHP by the required due date.):      "]
[]
[]
["(4)  Recipient:"]
["(5)  Authorized Official’s Name and"]
["      Title:"]
["(6)  Authorized Official’s Signature:"]
["(7)  Date (MM/DD/YYYY):"]

{"sheet":"Section 16","index":23,"n_rows":100,"n_cols":27,"rows_kept":100,"cut":false,"hidden":true,"merged":[[99,0,99,3],[4,0,4,3],[7,0,7,3],[54,0,54,2],[55,0,55,3],[57,0,57,3],[59,0,59,3],[61,0,61,3],[63,0,63,3],[45,0,45,3],[48,0,48,2],[50,0,50,2],[51,0,51,2],[52,0,52,2],[10,0,10,3],[11,0,11,3]]}
[null,null,"",null,null,null,null,null,null,null,null,null,null,"(1) Modernization of 1937 Act Housing [202(1)]","(1) Reduce over-crowding "]
["SECTION 16: IHP AMENDMENTS",null,null,null,null,null,null,null,null,null,null,null,1]
["NAHASDA §§ 24 CFR §1000.512  ",null,null,null,null,null,null,null,null,null,null,null,2]
[]
["Use this section for IHP amendments only."]
[]
[null,null,null,null,null,null,null,null,null,null,null,null,3]
[null,null,null,null,null,null,null,null,null,null,null,null,4]
[]
[]
[]
[]
[]
["Eligible Activity","Output Measure","Output Completion"]
["(1) Modernization of 1937 Act Housing [202(1)]","Units","All work completed and unit passed final inspection"]
["(2) Operation of 1937 Act Housing [202(1)]","Units","Number of units in inventory at Program Year End (PYE)"]
["(3) Acquisition of Rental Housing [202(2)]","Units","When recipient takes title to the unit"]
["(4) Construction of Rental Housing [202(2)]","Units","All work completed and unit passed final inspection"]
["(5) Rehabilitation of Rental Housing [202(2)]","Units","All work completed and unit passed final inspection"]
["(6) Acquisition of Land for Rental Housing Development [202(2)]","Acres","When recipient takes title to the land"]
["(7) Development of Emergency Shelters [202(2)]","Households","Number of households served at any one time, based on capacity of the shelter"]
["(8) Conversion of Other Structures to Affordable Housing [202(2)]","Units","All work completed and unit passed final inspection"]
["(9) Other Rental Housing Development [202(2)]","Units","All work completed and unit passed final inspection"]
["(10) Acquisition of Land for Homebuyer Unit Development [202(2)]","Acres","When recipient takes title to the land"]
["(11) New Construction of Homebuyer Units [202(2)]","Units","All work completed and unit passed final inspection"]
["(12) Acquisition of Homebuyer Units [202(2)]","Units","When recipient takes title to the unit"]
["(13) Down Payment/Closing Cost Assistance [202(2)]","Units","When binding commitment signed"]
["(14) Lending Subsidies for Homebuyers (Loan) [202(2)]","Units","When binding commitment signed"]
["(15) Other Homebuyer Assistance Activities [202(2)]","Units","When binding commitment signed"]
["(16) Rehabilitation Assistance to Existing Homeowners [202(2)]","Units","All work completed and unit passed final inspection"]
["(17) Tenant Based Rental Assistance [202(3)]","Households","Count each household once per year"]
["(18) Other Housing Service [202(3)]","Households","Count each household once per year"]
["(19) Housing Management Services [202(4)]","Households","Count each household once per year"]
["(20) Operation and Maintenance of NAHASDA-Assisted Units [202(4)]","Units","Number of units in inventory at PYE"]
["(21) Crime Prevention and Safety [202(5)]","Dollars","Dollars spent (report in Uses of Funding Table only)"]
["(22) Model Activities [202(6)]","Dollars","Dollars spent (report in Uses of Funding Table only)"]
["(23) Self-Determination Program [231-235]"]
["Acquisition","Units","When recipient takes title to the unit"]
["Construction","Units","All work completed and unit passed final inspection"]
["Rehabilitation","Units","All work completed and unit passed final inspection"]
["Infrastructure","Dollars","Dollars spent (report in Uses of Funding Table only)"]
["(24) Infrastructure to Support Housing [202(2)]","Dollars","Dollars spent (report in Uses of Funding Table only)"]
["(25) Reserve Accounts [202(9)]","N/A","N/A"]
[]
["APR: REPORTING ON PROGRAM YEAR PROGRESS (NAHASDA § 404(b))"]
["Complete the shaded section of text below to describe your completed program tasks and actual results.  Only report on activities completed during the 12-month program year.  Financial data should be presented using the same basis of accounting as the Schedule of Expenditures of Federal Awards (SEFA) in the annual OMB Circular A-133 audit.  For unit accomplishments, only count units when the unit was completed and occupied during the year.  For households, only count the household if it received the assistance during the previous 12-month program year."]
[null,null,null,null,null,null,null,null,null,null,null,null,null,null,null,null,null,null,null,null,null,null,null,null,null,null,1]
["1. Program Name and Unique Identifier:   "]
["2. Program Description (This should be the description of the planned program.):"]
[]
["3. Eligible Activity Number (Select one activity from the Eligible Activity list.  For any activity involving housing units as the output measure (excluding operations and maintenance), do not combine homeownership and rental housing in one activity, so that when housing units are reported in the APR they are correctly identified as homeownership or rental.):      "]
["4. Intended Outcome Number (Select one outcome from the Outcome list. Each program can have only one outcome.  If more than one outcome applies, create a separate program for each outcome.):      "]
["Describe Other Intended Outcome (Only if you selected \"Other\" above):"]
[]
["5. Actual Outcome Number (In the APR identify the actual outcome from the Outcome list.):"]
["Describe Other Actual Outcome (Only if you selected \"Other\" above):"]
[]
["6. Who Will Be Assisted (Describe the types of households that will be assisted under the program. Please note: assistance made available to families whose incomes fall within 80 to 100 percent of the median should be included as a separate program within this section.):"]
[]
["7. Types and Level of Assistance (Describe the types and the level of assistance that will be provided to each household, as applicable.): "]
[]
["8. APR: Describe the accomplishments for the APR in the 12-month program year. "]
[]
["9:  Planned and Actual Outputs for 12-Month Program Year "]
[]
["Eligible Activity","Output Measure","Output Completion"]
["(1) Modernization of 1937 Act Housing [202(1)]","Units","All work completed and unit passed final inspection"]
["(2) Operation of 1937 Act Housing [202(1)]","Units","Number of units in inventory at Program Year End (PYE)"]
["(3) Acquisition of Rental Housing [202(2)]","Units","When recipient takes title to the unit"]
["(4) Construction of Rental Housing [202(2)]","Units","All work completed and unit passed final inspection"]
["(5) Rehabilitation of Rental Housing [202(2)]","Units","All work completed and unit passed final inspection"]
["(6) Acquisition of Land for Rental Housing Development [202(2)]","Acres","When recipient takes title to the land"]
["(7) Development of Emergency Shelters [202(2)]","Households","Number of households served at any one time, based on capacity of the shelter"]
["(8) Conversion of Other Structures to Affordable Housing [202(2)]","Units","All work completed and unit passed final inspection"]
["(9) Other Rental Housing Development [202(2)]","Units","All work completed and unit passed final inspection"]
["(10) Acquisition of Land for Homebuyer Unit Development [202(2)]","Acres","When recipient takes title to the land"]
["(11) New Construction of Homebuyer Units [202(2)]","Units","All work completed and unit passed final inspection"]
["(12) Acquisition of Homebuyer Units [202(2)]","Units","When recipient takes title to the unit"]
["(13) Down Payment/Closing Cost Assistance [202(2)]","Units","When binding commitment signed"]
["(14) Lending Subsidies for Homebuyers (Loan) [202(2)]","Units","When binding commitment signed"]
["(15) Other Homebuyer Assistance Activities [202(2)]","Units","When binding commitment signed"]
["(16) Rehabilitation Assistance to Existing Homeowners [202(2)]","Units","All work completed and unit passed final inspection"]
["(17) Tenant Based Rental Assistance [202(3)]","Households","Count each household once per year"]
["(18) Other Housing Service [202(3)]","Households","Count each household once per year"]
["(19) Housing Management Services [202(4)]","Households","Count each household once per year"]
["(20) Operation and Maintenance of NAHASDA-Assisted Units [202(4)]","Units","Number of units in inventory at PYE"]
["(21) Crime Prevention and Safety [202(5)]","Dollars","Dollars spent (report in Uses of Funding Table only)"]
["(22) Model Activities [202(6)]","Dollars","Dollars spent (report in Uses of Funding Table only)"]
["(23) Self-Determination Program [231-235]"]
["Acquisition","Units","When recipient takes title to the unit"]
["Construction","Units","All work completed and unit passed final inspection"]
["Rehabilitation","Units","All work completed and unit passed final inspection"]
["Infrastructure","Dollars","Dollars spent (report in Uses of Funding Table only)"]
["(24) Infrastructure to Support Housing [202(2)]","Dollars","Dollars spent (report in Uses of Funding Table only)"]
[]
["Planned Number of Units to be Completed in Year Under this Program","Planned Number of Households To Be Served in Year Under this Program","Planned Number of Acres To Be Purchased in Year Under this Program"]
[]
["APR: Actual Number of Units Completed in Program Year","APR: Actual Number of Households Served in Program Year","APR: Actual Number of Acres Purchased in Program Year"]
[]
["1.10:  APR: If the program is behind schedule, explain why.  (24 CFR § 1000.512(b)(2))"]

{"sheet":"Section 16 (1)","index":24,"n_rows":100,"n_cols":27,"rows_kept":100,"cut":false,"hidden":false,"merged":[[99,0,99,3],[4,0,4,3],[7,0,7,3],[54,0,54,2],[55,0,55,3],[57,0,57,3],[59,0,59,3],[61,0,61,3],[63,0,63,3],[45,0,45,3],[48,0,48,2],[50,0,50,2],[51,0,51,2],[52,0,52,2],[10,0,10,3],[11,0,11,3]]}
[null,null,""]
["SECTION 16: IHP AMENDMENTS"]
["24 CFR §1000.512  "]
[]
["Use this section for IHP amendments only."]
[]
[]
[]
[]
[]
[]
[]
[]
["Eligible Activity","Output Measure","Output Completion"]
["(1) Modernization of 1937 Act Housing [202(1)]","Units","All work completed and unit passed final inspection"]
["(2) Operation of 1937 Act Housing [202(1)]","Units","Number of units in inventory at Program Year End (PYE)"]
["(3) Acquisition of Rental Housing [202(2)]","Units","When recipient takes title to the unit"]
["(4) Construction of Rental Housing [202(2)]","Units","All work completed and unit passed final inspection"]
["(5) Rehabilitation of Rental Housing [202(2)]","Units","All work completed and unit passed final inspection"]
["(6) Acquisition of Land for Rental Housing Development [202(2)]","Acres","When recipient takes title to the land"]
["(7) Development of Emergency Shelters [202(2)]","Households","Number of households served at any one time, based on capacity of the shelter"]
["(8) Conversion of Other Structures to Affordable Housing [202(2)]","Units","All work completed and unit passed final inspection"]
["(9) Other Rental Housing Development [202(2)]","Units","All work completed and unit passed final inspection"]
["(10) Acquisition of Land for Homebuyer Unit Development [202(2)]","Acres","When recipient takes title to the land"]
["(11) New Construction of Homebuyer Units [202(2)]","Units","All work completed and unit passed final inspection"]
["(12) Acquisition of Homebuyer Units [202(2)]","Units","When recipient takes title to the unit"]
["(13) Down Payment/Closing Cost Assistance [202(2)]","Units","When binding commitment signed"]
["(14) Lending Subsidies for Homebuyers (Loan) [202(2)]","Units","When binding commitment signed"]
["(15) Other Homebuyer Assistance Activities [202(2)]","Units","When binding commitment signed"]
["(16) Rehabilitation Assistance to Existing Homeowners [202(2)]","Units","All work completed and unit passed final inspection"]
["(17) Tenant Based Rental Assistance [202(3)]","Households","Count each household once per year"]
["(18) Other Housing Service [202(3)]","Households","Count each household once per year"]
["(19) Housing Management Services [202(4)]","Households","Count each household once per year"]
["(20) Operation and Maintenance of NAHASDA-Assisted Units [202(4)]","Units","Number of units in inventory at PYE"]
["(21) Crime Prevention and Safety [202(5)]","Dollars","Dollars spent (report in Uses of Funding Table only)"]
["(22) Model Activities [202(6)]","Dollars","Dollars spent (report in Uses of Funding Table only)"]
["(23) Self-Determination Program [231-235]"]
["Acquisition","Units","When recipient takes title to the unit"]
["Construction","Units","All work completed and unit passed final inspection"]
["Rehabilitation","Units","All work completed and unit passed final inspection"]
["Infrastructure","Dollars","Dollars spent (report in Uses of Funding Table only)"]
["(24) Infrastructure to Support Housing [202(2)]","Dollars","Dollars spent (report in Uses of Funding Table only)"]
["(25) Reserve Accounts [202(9)]","N/A","N/A"]
[]
["APR: REPORTING ON PROGRAM YEAR PROGRESS (NAHASDA § 404(b))"]
["Complete the shaded section of text below to describe your completed program tasks and actual results.  Only report on activities completed during the 12-month program year.  Financial data should be presented using the same basis of accounting as the Schedule of Expenditures of Federal Awards (SEFA) in the annual audit.  For unit accomplishments, only count units when the unit was completed and occupied during the year.  For households, only count the household if it received the assistance during the previous 12-month program year."]
[]
["1. Program Name and Unique Identifier:   ",null,null,null,null,null,null,null,null,null,null,null,null,null,null,null,null,null,null,null,null,null,null,null,null,null,1]
["2. Program Description (This should be the description of the planned program.):"]
[]
["3. Eligible Activity Number (Select one activity from the Eligible Activity list.  For any activity involving housing units as the output measure (excluding operations and maintenance), do not combine homeownership and rental housing in one activity, so that when housing units are reported in the APR they are correctly identified as homeownership or rental.):      "]
["4. Intended Outcome Number (Select one outcome from the Outcome list. Each program can have only one outcome.  If more than one outcome applies, create a separate program for each outcome.):      "]
["Describe Other Intended Outcome (Only if you selected \"Other\" above.):      "]
[]
["5. Actual Outcome Number (In the APR identify the actual outcome from the Outcome list.):      "]
["Describe Other Actual Outcome (Only if you selected \"Other\" in above):"]
[]
["6. Who Will Be Assisted (Describe the types of households that will be assisted under the program. Please note: assistance made available to families whose incomes fall within 80 to 100 percent of the median must be included as a separate program within this section.):      "]
[]
["7. Types and Level of Assistance (Describe the types and the level of assistance that will be provided to each household, as applicable.): "]
[]
["8. APR: Describe the accomplishments for the APR in the 12-month program year. "]
[]
["9.  Planned and Actual Outputs for 12-Month Program Year "]
[]
["Eligible Activity","Output Measure","Output Completion"]
["(1) Modernization of 1937 Act Housing [202(1)]","Units","All work completed and unit passed final inspection"]
["(2) Operation of 1937 Act Housing [202(1)]","Units","Number of units in inventory at Program Year End (PYE)"]
["(3) Acquisition of Rental Housing [202(2)]","Units","When recipient takes title to the unit"]
["(4) Construction of Rental Housing [202(2)]","Units","All work completed and unit passed final inspection"]
["(5) Rehabilitation of Rental Housing [202(2)]","Units","All work completed and unit passed final inspection"]
["(6) Acquisition of Land for Rental Housing Development [202(2)]","Acres","When recipient takes title to the land"]
["(7) Development of Emergency Shelters [202(2)]","Households","Number of households served at any one time, based on capacity of the shelter"]
["(8) Conversion of Other Structures to Affordable Housing [202(2)]","Units","All work completed and unit passed final inspection"]
["(9) Other Rental Housing Development [202(2)]","Units","All work completed and unit passed final inspection"]
["(10) Acquisition of Land for Homebuyer Unit Development [202(2)]","Acres","When recipient takes title to the land"]
["(11) New Construction of Homebuyer Units [202(2)]","Units","All work completed and unit passed final inspection"]
["(12) Acquisition of Homebuyer Units [202(2)]","Units","When recipient takes title to the unit"]
["(13) Down Payment/Closing Cost Assistance [202(2)]","Units","When binding commitment signed"]
["(14) Lending Subsidies for Homebuyers (Loan) [202(2)]","Units","When binding commitment signed"]
["(15) Other Homebuyer Assistance Activities [202(2)]","Units","When binding commitment signed"]
["(16) Rehabilitation Assistance to Existing Homeowners [202(2)]","Units","All work completed and unit passed final inspection"]
["(17) Tenant Based Rental Assistance [202(3)]","Households","Count each household once per year"]
["(18) Other Housing Service [202(3)]","Households","Count each household once per year"]
["(19) Housing Management Services [202(4)]","Households","Count each household once per year"]
["(20) Operation and Maintenance of NAHASDA-Assisted Units [202(4)]","Units","Number of units in inventory at PYE"]
["(21) Crime Prevention and Safety [202(5)]","Dollars","Dollars spent (report in Uses of Funding Table only)"]
["(22) Model Activities [202(6)]","Dollars","Dollars spent (report in Uses of Funding Table only)"]
["(23) Self-Determination Program [231-235]"]
["Acquisition","Units","When recipient takes title to the unit"]
["Construction","Units","All work completed and unit passed final inspection"]
["Rehabilitation","Units","All work completed and unit passed final inspection"]
["Infrastructure","Dollars","Dollars spent (report in Uses of Funding Table only)"]
["(24) Infrastructure to Support Housing [202(2)]","Dollars","Dollars spent (report in Uses of Funding Table only)"]
["(25) Reserve Accounts [202(9)]","N/A","N/A"]
["Planned Number of Units to be Completed in Year Under this Program","Planned Number of Households To Be Served in Year Under this Program","Planned Number of Acres To Be Purchased in Year Under this Program"]
[]
["APR: Actual Number of Units Completed in Program Year","APR: Actual Number of Households Served in Program Year","APR: Actual Number of Acres Purchased in Program Year"]
[]
["10.  APR: If the program is behind schedule, explain why.  (24 CFR § 1000.512(b)(2))"]

{"sheet":"Section 16 - Funds - Signature","index":25,"n_rows":81,"n_cols":15,"rows_kept":81,"cut":false,"hidden":false,"merged":[[57,0,64,9],[67,0,71,9],[77,3,77,8],[77,0,79,2],[79,3,79,9],[78,3,78,9],[80,0,80,2],[80,3,80,9],[40,0,40,13],[48,12,48,13],[75,0,75,2],[75,3,75,9],[76,0,76,2],[76,3,76,9],[48,0,48,1],[48,2,48,3],[48,4,48,5],[48,6,48,7],[48,8,48,9],[48,10,48,11],[46,12,46,13],[47,0,47,1],[47,12,47,13],[46,0,46,1],[46,2,46,3],[46,4,46,5],[46,6,46,7],[46,8,46,9],[46,10,46,11],[47,2,47,3],[47,4,47,5],[47,6,47,7],[47,8,47,9],[47,10,47,11],[44,12,44,13],[45,0,45,1],[45,2,45,3],[45,4,45,5],[45,6,45,7],[45,8,45,9],[45,10,45,11],[45,12,45,13],[44,0,44,1],[44,2,44,3],[44,4,44,5],[44,6,44,7],[44,8,44,9],[44,10,44,11],[42,2,42,7],[42,8,42,13],[43,2,43,3],[43,4,43,5],[43,6,43,7],[43,8,43,9],[43,10,43,11],[43,12,43,13],[28,0,28,2],[29,0,29,2],[30,0,30,2],[31,0,31,2],[32,0,32,2],[27,0,27,2],[15,0,15,12],[17,3,17,7],[17,8,17,13],[18,0,19,2],[20,0,20,2],[21,0,21,2],[22,0,22,2],[23,0,23,2],[24,0,24,2],[25,0,25,2],[26,0,26,2],[11,0,11,5],[11,6,11,10],[12,0,12,5],[12,6,12,10],[13,0,13,5],[13,6,13,10],[8,0,8,5],[8,6,8,10],[9,0,9,5],[9,6,9,10],[10,0,10,5],[10,6,10,10],[7,0,7,5],[7,6,7,10],[4,0,4,10],[5,0,5,5],[5,6,5,10],[6,0,6,5],[6,6,6,10]]}
[]
[]
[]
[]
[]
[]
[]
[]
[]
[]
[]
[]
[]
[]
[]
["(11) Amended Sources of Funding (NAHASDA § 102(b)(2)(C)(i) and 404(b)) (Complete the non-shaded portions of the chart below to describe your estimated or anticipated sources of funding for the 12-month program year.  APR Actual Sources of Funding -- Please complete the shaded portions of the chart below to describe your actual funds received.  Only report on funds actually received and under a grant agreement or other binding commitment during the 12-month program year.)  "]
[]
[null,null,null,"IHP",null,null,null,null,"APR"]
["SOURCE",null,null,"(A)","(B)","(C)","(D)","(E)","(F)","(G)","(H)","(I)","(J)","(K)"]
[null,null,null,"Estimated amount on hand at beginning of program year","Estimated amount to be received during 12-month program year","Estimated total sources of funds      (A+B)","Estimated funds to be expended during 12-month program year","Estimated unexpended funds remaining at end of program year  (C-D)","Actual amount on hand at beginning of program year","Actual amount received during 12-month program year","Actual total sources of funding (F+G)","Actual funds expended during 12-month program year","Actual unexpended funds remaining at end of 12-month program year     (H - I)","Actual unexpended funds obligated but not expended at end of 12-month program year"]
["1. IHBG Funds",null,null,null,null,{"$f":"SUM(D21:E21)","v":0},null,{"$f":"(F21-G21)","v":0},null,null,{"$f":"SUM(I21:J21)","v":0},null,{"$f":"SUM(K21-L21)","v":0}]
["2. IHBG Program Income",null,null,null,null,0,null,0,null,null,0,null,0]
["3. Title VI",null,null,null,null,0,null,0,null,null,0,null,0]
["4. Title VI Program Income",null,null,null,null,0,null,0,null,null,0,null,0]
["5. 1937 Act Operating Reserves",null,null,null,null,0,null,0,null,null,0,null,0]
["6. Carry Over 1937 Act Funds",null,null,null,null,0,null,0,null,null,0,null,0]
["LEVERAGED FUNDS"]
["7. ICDBG Funds",null,null,null,null,{"$f":"SUM(D28:E28)","v":0},null,{"$f":"(F28-G28)","v":0},null,null,{"$f":"SUM(I28:J28)","v":0},null,{"$f":"SUM(K28-L28)","v":0}]
["8. Other Federal Funds",null,null,null,null,{"$f":"SUM(D29:E29)","v":0},null,{"$f":"(F29-G29)","v":0},null,null,{"$f":"SUM(I29:J29)","v":0},null,{"$f":"SUM(K29-L29)","v":0}]
["9. LIHTC",null,null,null,null,{"$f":"SUM(D30:E30)","v":0},null,{"$f":"(F30-G30)","v":0},null,null,{"$f":"SUM(I30:J30)","v":0},null,{"$f":"SUM(K30-L30)","v":0}]
["10. Non-Federal Funds",null,null,null,null,{"$f":"SUM(D31:E31)","v":0},null,{"$f":"(F31-G31)","v":0},null,null,{"$f":"SUM(I31:J31)","v":0},null,{"$f":"SUM(K31-L31)","v":0}]
["TOTAL",null,null,{"$f":"SUM(D21:D31)","v":0},{"$f":"SUM(E21:E31)","v":0},{"$f":"SUM(F21:F31)","v":0},{"$f":"SUM(G21:G31)","v":0},0,0,0,0,0,0,0]
["TOTAL Columns C & H, 2 through 10",null,null,null,null,{"$f":"SUM(F22:F31)","v":0},null,null,null,null,{"$f":"SUM(K22:K31)","v":0}]
["Notes:"]
["a. For the IHP, fill in columns A, B, C, D, and E (non-shaded columns). For the APR, fill in columns F, G, H, I, J, and K (shaded columns)."]
["b. Total of Column D should match the total of Column N from the Uses of Funding table below."]
["c. Total of Column I should match the Total of Column Q from the Uses of Funding table below."]
[]
[]
[]
["(12) Amended Uses of Funding (NAHASDA § 102(b)(2)(C)(ii)) (Note that the budget should not exceed the total funds on hand and insert as many rows as needed to include all the programs identified in Section 3.  Actual expenditures in the APR section are for the 12-month program year.)  "]
[]
[null,null,"IHP",null,null,null,null,null,"APR"]
[null,null,"(L)",null,"(M)",null,"(N)",null,"(O)",null,"(P)",null,"(Q)"]
["PROGRAM NAME",null,"Prior and current year IHBG (only) funds to be expended in 12-month program year",null,"Total all other funds to be expended in 12-month program year",null,"Total funds to be expended in 12-month program year         (L+M)",null,"Total IHBG (only) funds expended in 12-month program year",null,"Total all other funds expended in 12-month program year",null,"Total funds expended in 12-month program year (O+P)"]
["",null,null,null,null,null,{"$f":"SUM(C46:E46)","v":0},null,null,null,null,null,{"$f":"SUM(I46:K46)","v":0},null,"Section 16 (1)"]
["Planning and Administration",null,null,null,null,null,0,null,null,null,null,null,0]
["Loan repayment",null,null,null,null,null,0,null,null,null,null,null,0]
["TOTAL",null,{"$f":"SUM(C46:C48)","v":0},null,{"$f":"SUM(E46:E48)","v":0},null,0,null,{"$f":"SUM(I46:I48)","v":0},null,{"$f":"SUM(K46:K48)","v":0},null,0]
["Notes:"]
["a. Total of Column L cannot exceed the IHBG funds from Column C, Row 1 from the Estimated Sources of Funding table in Line 2 above. "]
["b. Total of Column M cannot exceed the total from Column C, Rows 2-10 from the Estimated Sources of Funding table in Line 2 above.  "]
["c. Total of Column O cannot exceed total IHBG funds received in Column H, Row 1 from the Estimated Sources of Funding table in Line 2 above."]
["d. Total of Column P cannot exceed total of Column H, Rows 2-10 of the Estimated Sources of Funding table in Line 2 above."]
["e. Total of Column Q should equal total of Column I of the Estimated Sources of Funding table in Line 2 above."]
[]
[]
["(13) Estimated Sources or Uses of Funding (NAHASDA § 102(b)(2)(C)).  (Provide any additional information about the estimated sources or uses of funding, including leverage (if any).  You must provide the relevant information for any planned loan repayment listed in the Uses of Funding table on the previous page.  This planned loan repayment can be associated with Title VI or with private or tribal funding that is used for an eligible activity described in an IHP that has been determined to be in compliance by HUD.  The text must describe which specific loan is planned to be repaid and the NAHASDA-eligible activity and program associated with this loan):  "]
[]
[]
[]
[]
[]
[]
[]
[]
[]
["(14) APR (NAHASDA § 404(b)) (Enter any additional information about the actual sources or uses of funding, including leverage (if any).  You must provide the relevant information for any actual loan repayment listed in the Uses of Funding table on the previous page.  The text must describe which loan was repaid and the NAHASDA-eligible activity and program associated with this loan.):"]
[]
[]
[]
[]
[]
[]
[]
["(15) Recipient:"]
["(16)  Authorized Official’s Name and Title:"]
["(17)  Authorized Official’s Signature:",null,null,"              I certify that all other sections of the IHP approved on "]
[null,null,null,"              are accurate and reflect the activities planned."]
[]
["(18)  Date (MM/DD/YYYY):"]

{"sheet":"Macros","index":26,"n_rows":9,"n_cols":2,"rows_kept":9,"cut":false,"hidden":true,"merged":[]}
[]
[null,"Content must be enabled to use this automated document"]
[]
[null,"To enable content:"]
[null,"1. Click the \"Options\" button directly above."]
[]
[]
[]
[null,"2. Select \"Enable this content\" and click \"OK\"."]